Workbook

Sheet nominal
A1: GERENCIA REGIONAL DE SALUD LA LIBERTAD
A2: Oficina de Estadística e Informática
I3: POBLACION ESTIMADA POR EDADES SIMPLES, GRUPOS DE EDAD SEGÚN PROVINCIA, DISTRITO Y ESTABLECIMIENTOS DE SALUD 2024
A4: Total EESS | B4: Ubigeo | C4: Provincia / Distrito | D4: Cód RENIPRESS | E4: Clasificación | F4: Establecimiento de Salud | G4: TOTAL | H4: POBLACION POR EDADES SIMPLES | AB4: POBLACIÓN TOTAL POR GRUPOS QUINQUENALES | AP4: EDADES ESPECIALES | AS4: NACIMIENTO | AT4: POB FEMENINA TOTAL | AU4: POBLACION FEMENINA | AX4: GESTANTES ESPERADAS
A5: N° | H5: 0a | I5: 1a | J5: 2a | K5: 3a | L5: 4a | M5: 5a | N5: 6a | O5: 7a | P5: 8a | Q5: 9a | R5: 10a | S5: 11a | T5: 12a | U5: 13a | V5: 14a | W5: 15a | X5: 16a | Y5: 17a | Z5: 18a | AA5: 19a | AB5: 20-24a | AC5: 25-29a | AD5: 30-34a | AE5: 35-39a | AF5: 40-44a | AG5: 45-49a | AH5: 50-54a | AI5: 55-59a | AJ5: 60-64a | AK5: 65-69a | AL5: 70-74a | AM5: 75-79a | AN5: 80- 84a | AO5: 85a / + | AP5: 28 d | AQ5: 0m - 5m | AR5: 6m - 11m | AU5: 10-14a | AV5: 15-19a | AW5: 20-49a
A6: =SUM(A7+A81+A104+A119+A130+A157+A217+A234+A285+A338+A376+A397) -> 315 | B6: 130000 | C6: LA LIBERTAD | G6: =+SUM(H6:AO6) -> 2168432 | H6: =SUM(H7+H81+H104+H119+H130+H157+H217+H234+H285+H338+H376+H397) -> 28908 | I6: =SUM(I7+I81+I104+I119+I130+I157+I217+I234+I285+I338+I376+I397) -> 30216 | J6: 31823 | K6: 32319 | L6: 35130 | M6: 35808 | N6: 39416 | O6: 40386 | P6: 39759 | Q6: 39568 | R6: 39997 | S6: 39373 | T6: 40994 | U6: 40163 | V6: 37790 | W6: 37776 | X6: 38885 | Y6: 37617 | Z6: 35405 | AA6: 34287 | AB6: 172377 | AC6: 190559 | AD6: 170920 | AE6: 155747 | AF6: 140466 | AG6: 127451 | AH6: 110522 | AI6: 96053 | AJ6: 78864 | AK6: 63150 | AL6: 46815 | AM6: 35208 | AN6: 23239 | AO6: 21441 | AP6: 1706 | AQ6: 13605 | AR6: 15323 | AS6: 38618 | AT6: 1092132 | AU6: 97983 | AV6: 91314 | AW6: 480234 | AX6: 59485
A7: =+SUM(A8:A80) -> 61 | B7: 130100 | C7: TRUJILLO (1) | G7: =+SUM(H7:AO7) -> 1216681 | H7: =+H8+H22+H34+H39+H47+H55+H59+H66+H68+H71+H73 -> 13622 | I7: =+I8+I22+I34+I39+I47+I55+I59+I66+I68+I71+I73 -> 14488 | J7: =+J8+J22+J34+J39+J47+J55+J59+J66+J68+J71+J73 -> 14955 | K7: 15550 | L7: 17187 | M7: 17836 | N7: 21490 | O7: 22052 | P7: 21985 | Q7: 21840 | R7: 22048 | S7: 21071 | T7: 21917 | U7: 21226 | V7: 19286 | W7: 19549 | X7: 19818 | Y7: 18900 | Z7: 18351 | AA7: 18324 | AB7: 94120 | AC7: 110246 | AD7: 102191 | AE7: 92233 | AF7: 84245 | AG7: 75505 | AH7: 64721 | AI7: 56120 | AJ7: 46342 | AK7: 37328 | AL7: 27551 | AM7: 20191 | AN7: 12802 | AO7: 11591 | AP7: 815 | AQ7: 6430 | AR7: 7199 | AS7: 17970 | AT7: 613503 | AU7: 51560 | AV7: 46712 | AW7: 279998 | AX7: 25600
A8: 13 | B8: 130101 | C8: TRUJILLO (1) | G8: =+SUM(H8:AO8) -> 356914 | H8: =+SUM(H11:H21) -> 3528 | I8: =+SUM(I11:I21) -> 3514 | J8: 3909 | K8: 4230 | L8: 5078 | M8: 5275 | N8: 5407 | O8: 5609 | P8: 5558 | Q8: 5346 | R8: 5532 | S8: 5297 | T8: 5524 | U8: 5346 | V8: 4967 | W8: 4953 | X8: 4996 | Y8: 4695 | Z8: 4690 | AA8: 4746 | AB8: 24821 | AC8: 29430 | AD8: 29481 | AE8: 26729 | AF8: 26068 | AG8: 23773 | AH8: 20417 | AI8: 18828 | AJ8: 16421 | AK8: 13737 | AL8: 10689 | AM8: 8163 | AN8: 5149 | AO8: 5008 | AP8: 213 | AQ8: 1698 | AR8: 1833 | AS8: 4640 | AT8: 180181 | AU8: 12874 | AV8: 11632 | AW8: 79952 | AX8: 7259
B9: 130101 | C9: TRUJILLO | D9: 00005195 | E9: Hospital | F9: BELEN DE TRUJILLO
B10: 130101 | C10: TRUJILLO | D10: 00005196 | E10: Hospital | F10: REGIONAL DOCENTE DE TRUJILLO
B11: 130101 | C11: TRUJILLO | D11: 00005204 | E11: Hospital de especialidades basicas | F11: LA NORIA | G11: =+SUM(H11:AO11) -> 31402 | H11: 309 | I11: 309 | J11: 344 | K11: 372 | L11: 447 | M11: 464 | N11: 476 | O11: 494 | P11: 489 | Q11: 470 | R11: 487 | S11: 466 | T11: 486 | U11: 469 | V11: 437 | W11: 436 | X11: 440 | Y11: 413 | Z11: 412 | AA11: 418 | AB11: 2184 | AC11: 2590 | AD11: 2592 | AE11: 2352 | AF11: 2294 | AG11: 2092 | AH11: 1797 | AI11: 1657 | AJ11: 1445 | AK11: 1209 | AL11: 941 | AM11: 718 | AN11: 452 | AO11: 441 | AP11: 17 | AQ11: 149 | AR11: 161 | AS11: 408 | AT11: 15856 | AU11: 1133 | AV11: 1023 | AW11: 7035 | AX11: 639
B12: 130101 | C12: TRUJILLO | D12: 00005202 | E12: Centro de salud - camas de internamiento | F12: EL BOSQUE | G12: 56725 | H12: 561 | I12: 558 | J12: 621 | K12: 673 | L12: 809 | M12: 841 | N12: 860 | O12: 892 | P12: 883 | Q12: 849 | R12: 880 | S12: 842 | T12: 878 | U12: 850 | V12: 791 | W12: 786 | X12: 793 | Y12: 748 | Z12: 745 | AA12: 755 | AB12: 3944 | AC12: 4677 | AD12: 4685 | AE12: 4247 | AF12: 4142 | AG12: 3778 | AH12: 3243 | AI12: 2992 | AJ12: 2609 | AK12: 2183 | AL12: 1697 | AM12: 1298 | AN12: 818 | AO12: 797 | AP12: 34 | AQ12: 270 | AR12: 292 | AS12: 738 | AT12: 28629 | AU12: 2046 | AV12: 1849 | AW12: 12705 | AX12: 1152
B13: 130101 | C13: TRUJILLO | D13: 00005201 | E13: Centro de salud | F13: ARANJUEZ | G13: 31315 | H13: 310 | I13: 308 | J13: 343 | K13: 371 | L13: 445 | M13: 463 | N13: 474 | O13: 492 | P13: 488 | Q13: 469 | R13: 485 | S13: 465 | T13: 485 | U13: 469 | V13: 436 | W13: 435 | X13: 438 | Y13: 412 | Z13: 412 | AA13: 416 | AB13: 2178 | AC13: 2582 | AD13: 2587 | AE13: 2345 | AF13: 2287 | AG13: 2086 | AH13: 1791 | AI13: 1652 | AJ13: 1441 | AK13: 1205 | AL13: 938 | AM13: 716 | AN13: 452 | AO13: 439 | AP13: 19 | AQ13: 149 | AR13: 161 | AS13: 407 | AT13: 15809 | AU13: 1129 | AV13: 1021 | AW13: 7015 | AX13: 637
B14: 130101 | C14: TRUJILLO | D14: 00005203 | E14: Centro de salud | F14: LOS GRANADOS "SAGRADO CORAZON" | G14: 48537 | H14: 480 | I14: 478 | J14: 532 | K14: 575 | L14: 690 | M14: 717 | N14: 735 | O14: 763 | P14: 756 | Q14: 727 | R14: 752 | S14: 720 | T14: 751 | U14: 727 | V14: 675 | W14: 674 | X14: 679 | Y14: 638 | Z14: 638 | AA14: 645 | AB14: 3376 | AC14: 4002 | AD14: 4010 | AE14: 3635 | AF14: 3545 | AG14: 3233 | AH14: 2777 | AI14: 2561 | AJ14: 2233 | AK14: 1868 | AL14: 1454 | AM14: 1110 | AN14: 700 | AO14: 681 | AP14: 29 | AQ14: 231 | AR14: 249 | AS14: 631 | AT14: 24505 | AU14: 1751 | AV14: 1582 | AW14: 10873 | AX14: 987
B15: 130101 | C15: TRUJILLO | D15: 00005199 | E15: Centro de salud | F15: LA UNION | G15: 21401 | H15: 212 | I15: 211 | J15: 234 | K15: 254 | L15: 304 | M15: 316 | N15: 324 | O15: 336 | P15: 333 | Q15: 321 | R15: 332 | S15: 318 | T15: 331 | U15: 321 | V15: 298 | W15: 297 | X15: 300 | Y15: 281 | Z15: 281 | AA15: 284 | AB15: 1488 | AC15: 1765 | AD15: 1768 | AE15: 1603 | AF15: 1563 | AG15: 1425 | AH15: 1224 | AI15: 1129 | AJ15: 985 | AK15: 824 | AL15: 641 | AM15: 489 | AN15: 309 | AO15: 300 | AP15: 13 | AQ15: 102 | AR15: 110 | AS15: 278 | AT15: 10803 | AU15: 772 | AV15: 697 | AW15: 4794 | AX15: 435
B16: 130101 | C16: TRUJILLO | D16: 00005200 | E16: Centro de salud | F16: LOS JARDINES | G16: 59587 | H16: 589 | I16: 587 | J16: 653 | K16: 706 | L16: 848 | M16: 880 | N16: 903 | O16: 936 | P16: 928 | Q16: 893 | R16: 923 | S16: 884 | T16: 922 | U16: 893 | V16: 829 | W16: 827 | X16: 834 | Y16: 784 | Z16: 783 | AA16: 792 | AB16: 4144 | AC16: 4913 | AD16: 4922 | AE16: 4462 | AF16: 4352 | AG16: 3969 | AH16: 3409 | AI16: 3143 | AJ16: 2742 | AK16: 2293 | AL16: 1785 | AM16: 1363 | AN16: 860 | AO16: 836 | AP16: 36 | AQ16: 283 | AR16: 306 | AS16: 775 | AT16: 30082 | AU16: 2149 | AV16: 1942 | AW16: 13348 | AX16: 1212
B17: 130101 | C17: TRUJILLO | D17: 00005198 | E17: Centro de salud | F17: SAN MARTIN PORRES | G17: 44191 | H17: 437 | I17: 435 | J17: 484 | K17: 524 | L17: 629 | M17: 653 | N17: 669 | O17: 694 | P17: 688 | Q17: 662 | R17: 685 | S17: 656 | T17: 684 | U17: 662 | V17: 615 | W17: 613 | X17: 619 | Y17: 581 | Z17: 581 | AA17: 587 | AB17: 3073 | AC17: 3644 | AD17: 3650 | AE17: 3309 | AF17: 3228 | AG17: 2944 | AH17: 2528 | AI17: 2331 | AJ17: 2033 | AK17: 1701 | AL17: 1323 | AM17: 1011 | AN17: 638 | AO17: 620 | AP17: 26 | AQ17: 210 | AR17: 227 | AS17: 574 | AT17: 22309 | AU17: 1594 | AV17: 1440 | AW17: 9899 | AX17: 899
B18: 130101 | C18: TRUJILLO | D18: 00031725 | E18: Puesto de salud | F18: CLUB DE LEONES | G18: 26010 | H18: 257 | I18: 256 | J18: 285 | K18: 308 | L18: 370 | M18: 384 | N18: 394 | O18: 409 | P18: 405 | Q18: 390 | R18: 403 | S18: 386 | T18: 403 | U18: 390 | V18: 362 | W18: 361 | X18: 364 | Y18: 342 | Z18: 342 | AA18: 346 | AB18: 1809 | AC18: 2144 | AD18: 2148 | AE18: 1948 | AF18: 1900 | AG18: 1732 | AH18: 1488 | AI18: 1372 | AJ18: 1197 | AK18: 1001 | AL18: 779 | AM18: 595 | AN18: 375 | AO18: 365 | AP18: 15 | AQ18: 124 | AR18: 133 | AS18: 338 | AT18: 13129 | AU18: 938 | AV18: 848 | AW18: 5826 | AX18: 529
B19: 130101 | C19: TRUJILLO | D19: 00005206 | E19: Puesto de salud | F19: LIBERTAD | G19: 15917 | H19: 157 | I19: 157 | J19: 174 | K19: 189 | L19: 226 | M19: 235 | N19: 241 | O19: 250 | P19: 248 | Q19: 238 | R19: 247 | S19: 236 | T19: 246 | U19: 238 | V19: 221 | W19: 221 | X19: 223 | Y19: 209 | Z19: 209 | AA19: 212 | AB19: 1107 | AC19: 1313 | AD19: 1315 | AE19: 1192 | AF19: 1163 | AG19: 1060 | AH19: 911 | AI19: 840 | AJ19: 732 | AK19: 613 | AL19: 477 | AM19: 364 | AN19: 230 | AO19: 223 | AP19: 10 | AQ19: 76 | AR19: 82 | AS19: 207 | AT19: 8036 | AU19: 574 | AV19: 519 | AW19: 3566 | AX19: 324
B20: 130101 | C20: TRUJILLO | D20: 00005205 | E20: Puesto de salud | F20: PESQUEDA II | G20: 9219 | H20: 91 | I20: 91 | J20: 101 | K20: 109 | L20: 131 | M20: 136 | N20: 140 | O20: 145 | P20: 144 | Q20: 138 | R20: 143 | S20: 137 | T20: 143 | U20: 138 | V20: 128 | W20: 128 | X20: 129 | Y20: 121 | Z20: 121 | AA20: 123 | AB20: 641 | AC20: 760 | AD20: 762 | AE20: 691 | AF20: 673 | AG20: 614 | AH20: 527 | AI20: 486 | AJ20: 424 | AK20: 355 | AL20: 276 | AM20: 211 | AN20: 133 | AO20: 129 | AP20: 6 | AQ20: 44 | AR20: 47 | AS20: 120 | AT20: 4655 | AU20: 333 | AV20: 300 | AW20: 2066 | AX20: 188
B21: 130101 | C21: TRUJILLO | D21: 00005207 | E21: Puesto de salud | F21: PESQUEDA III | G21: 12610 | H21: 125 | I21: 124 | J21: 138 | K21: 149 | L21: 179 | M21: 186 | N21: 191 | O21: 198 | P21: 196 | Q21: 189 | R21: 195 | S21: 187 | T21: 195 | U21: 189 | V21: 175 | W21: 175 | X21: 177 | Y21: 166 | Z21: 166 | AA21: 168 | AB21: 877 | AC21: 1040 | AD21: 1042 | AE21: 945 | AF21: 921 | AG21: 840 | AH21: 722 | AI21: 665 | AJ21: 580 | AK21: 485 | AL21: 378 | AM21: 288 | AN21: 182 | AO21: 177 | AP21: 8 | AQ21: 60 | AR21: 65 | AS21: 164 | AT21: 6368 | AU21: 455 | AV21: 411 | AW21: 2825 | AX21: 257
A22: 11 | B22: 130102 | C22: EL PORVENIR (2) | G22: 238771 | H22: =+SUM(H23:H33) -> 2748 | I22: =+SUM(I23:I33) -> 2989 | J22: 3224 | K22: 3159 | L22: 3377 | M22: 3591 | N22: 4853 | O22: 5000 | P22: 4921 | Q22: 4903 | R22: 4931 | S22: 4762 | T22: 4877 | U22: 4738 | V22: 4222 | W22: 4435 | X22: 4336 | Y22: 4141 | Z22: 4064 | AA22: 4005 | AB22: 20337 | AC22: 22577 | AD22: 20435 | AE22: 17868 | AF22: 15643 | AG22: 14001 | AH22: 11767 | AI22: 9558 | AJ22: 7297 | AK22: 5791 | AL22: 3962 | AM22: 2789 | AN22: 1811 | AO22: 1659 | AP22: 162 | AQ22: 1325 | AR22: 1423 | AS22: 3964 | AT22: 120535 | AU22: 11618 | AV22: 10427 | AW22: 56131 | AX22: 4733
B23: 130102 | C23: EL PORVENIR | D23: 00005209 | E23: Hospital distrital DE EL PORVENIR | F23: SANTA ISABEL | G23: 23497 | H23: 270 | I23: 294 | J23: 317 | K23: 311 | L23: 332 | M23: 354 | N23: 478 | O23: 492 | P23: 484 | Q23: 482 | R23: 485 | S23: 468 | T23: 480 | U23: 466 | V23: 415 | W23: 436 | X23: 427 | Y23: 408 | Z23: 400 | AA23: 394 | AB23: 2002 | AC23: 2222 | AD23: 2011 | AE23: 1759 | AF23: 1540 | AG23: 1378 | AH23: 1158 | AI23: 941 | AJ23: 718 | AK23: 570 | AL23: 390 | AM23: 274 | AN23: 178 | AO23: 163 | AP23: 16 | AQ23: 130 | AR23: 140 | AS23: 390 | AT23: 11863 | AU23: 1143 | AV23: 1026 | AW23: 5525 | AX23: 466
B24: 130102 | C24: EL PORVENIR | D24: 00005220 | E24: Centro de salud - camas de internamiento | F24: ALTO TRUJILLO | G24: 77943 | H24: 897 | I24: 976 | J24: 1052 | K24: 1031 | L24: 1103 | M24: 1173 | N24: 1584 | O24: 1632 | P24: 1606 | Q24: 1600 | R24: 1610 | S24: 1554 | T24: 1592 | U24: 1547 | V24: 1378 | W24: 1448 | X24: 1416 | Y24: 1352 | Z24: 1327 | AA24: 1308 | AB24: 6639 | AC24: 7370 | AD24: 6671 | AE24: 5833 | AF24: 5107 | AG24: 4570 | AH24: 3842 | AI24: 3119 | AJ24: 2382 | AK24: 1890 | AL24: 1293 | AM24: 911 | AN24: 591 | AO24: 539 | AP24: 53 | AQ24: 433 | AR24: 464 | AS24: 1294 | AT24: 39345 | AU24: 3792 | AV24: 3404 | AW24: 18323 | AX24: 1545
B25: 130102 | C25: EL PORVENIR | D25: 00005210 | E25: Puesto de salud | F25: BUEN PASTOR | G25: 10291 | H25: 119 | I25: 129 | J25: 140 | K25: 137 | L25: 144 | M25: 153 | N25: 208 | O25: 215 | P25: 213 | Q25: 213 | R25: 213 | S25: 207 | T25: 212 | U25: 205 | V25: 183 | W25: 190 | X25: 186 | Y25: 178 | Z25: 175 | AA25: 171 | AB25: 876 | AC25: 973 | AD25: 879 | AE25: 770 | AF25: 673 | AG25: 603 | AH25: 505 | AI25: 414 | AJ25: 314 | AK25: 252 | AL25: 171 | AM25: 120 | AN25: 79 | AO25: 71 | AP25: 7 | AQ25: 57 | AR25: 62 | AS25: 170 | AT25: 5197 | AU25: 501 | AV25: 452 | AW25: 2419 | AX25: 205
B26: 130102 | C26: EL PORVENIR | D26: 00005211 | E26: Puesto de salud | F26: GRAN CHIMU | G26: 15192 | H26: 175 | I26: 190 | J26: 205 | K26: 201 | L26: 215 | M26: 229 | N26: 309 | O26: 318 | P26: 313 | Q26: 312 | R26: 314 | S26: 303 | T26: 310 | U26: 301 | V26: 269 | W26: 282 | X26: 276 | Y26: 263 | Z26: 259 | AA26: 255 | AB26: 1294 | AC26: 1436 | AD26: 1300 | AE26: 1137 | AF26: 995 | AG26: 891 | AH26: 749 | AI26: 608 | AJ26: 464 | AK26: 368 | AL26: 252 | AM26: 178 | AN26: 115 | AO26: 106 | AP26: 10 | AQ26: 84 | AR26: 91 | AS26: 252 | AT26: 7669 | AU26: 739 | AV26: 663 | AW26: 3571 | AX26: 301
B27: 130102 | C27: EL PORVENIR | D27: 00005212 | E27: Puesto de salud | F27: MIGUEL GRAU | G27: 20388 | H27: 235 | I27: 255 | J27: 275 | K27: 270 | L27: 288 | M27: 306 | N27: 415 | O27: 427 | P27: 420 | Q27: 419 | R27: 421 | S27: 406 | T27: 416 | U27: 405 | V27: 360 | W27: 379 | X27: 370 | Y27: 354 | Z27: 347 | AA27: 342 | AB27: 1737 | AC27: 1928 | AD27: 1745 | AE27: 1525 | AF27: 1336 | AG27: 1196 | AH27: 1005 | AI27: 816 | AJ27: 623 | AK27: 494 | AL27: 338 | AM27: 238 | AN27: 155 | AO27: 142 | AP27: 14 | AQ27: 113 | AR27: 122 | AS27: 339 | AT27: 10293 | AU27: 992 | AV27: 890 | AW27: 4794 | AX27: 404
B28: 130102 | C28: EL PORVENIR | D28: 00005213 | E28: Centro de salud | F28: RIO SECO - "SANTA. ROSA" | G28: 27836 | H28: 320 | I28: 348 | J28: 376 | K28: 368 | L28: 394 | M28: 419 | N28: 566 | O28: 583 | P28: 574 | Q28: 571 | R28: 575 | S28: 555 | T28: 568 | U28: 552 | V28: 492 | W28: 517 | X28: 506 | Y28: 483 | Z28: 474 | AA28: 467 | AB28: 2371 | AC28: 2632 | AD28: 2382 | AE28: 2083 | AF28: 1824 | AG28: 1632 | AH28: 1372 | AI28: 1114 | AJ28: 851 | AK28: 675 | AL28: 462 | AM28: 325 | AN28: 211 | AO28: 194 | AP28: 19 | AQ28: 154 | AR28: 166 | AS28: 462 | AT28: 14051 | AU28: 1354 | AV28: 1215 | AW28: 6543 | AX28: 552
B29: 130102 | C29: EL PORVENIR | D29: 00005214 | E29: Puesto de salud | F29: VICTOR RAUL HAYA DE LA TORRE | G29: 6119 | H29: 70 | I29: 77 | J29: 83 | K29: 81 | L29: 87 | M29: 92 | N29: 124 | O29: 128 | P29: 126 | Q29: 126 | R29: 126 | S29: 122 | T29: 125 | U29: 121 | V29: 108 | W29: 114 | X29: 111 | Y29: 106 | Z29: 104 | AA29: 103 | AB29: 521 | AC29: 578 | AD29: 524 | AE29: 458 | AF29: 401 | AG29: 359 | AH29: 302 | AI29: 245 | AJ29: 187 | AK29: 148 | AL29: 102 | AM29: 71 | AN29: 46 | AO29: 43 | AP29: 4 | AQ29: 34 | AR29: 36 | AS29: 102 | AT29: 3088 | AU29: 298 | AV29: 267 | AW29: 1438 | AX29: 121
B30: 130102 | C30: EL PORVENIR | D30: 00005215 | E30: Puesto de salud | F30: INDOAMERICA | G30: 5710 | H30: 66 | I30: 71 | J30: 77 | K30: 76 | L30: 81 | M30: 86 | N30: 116 | O30: 120 | P30: 118 | Q30: 117 | R30: 118 | S30: 114 | T30: 117 | U30: 113 | V30: 101 | W30: 106 | X30: 104 | Y30: 99 | Z30: 97 | AA30: 96 | AB30: 486 | AC30: 540 | AD30: 489 | AE30: 427 | AF30: 374 | AG30: 335 | AH30: 281 | AI30: 228 | AJ30: 174 | AK30: 138 | AL30: 95 | AM30: 67 | AN30: 43 | AO30: 40 | AP30: 4 | AQ30: 32 | AR30: 34 | AS30: 95 | AT30: 2882 | AU30: 278 | AV30: 249 | AW30: 1342 | AX30: 113
B31: 130102 | C31: EL PORVENIR | D31: 00005216 | E31: Puesto de salud | F31: VIRGEN DEL CARMEN | G31: 16516 | H31: 190 | I31: 207 | J31: 223 | K31: 218 | L31: 234 | M31: 248 | N31: 336 | O31: 346 | P31: 340 | Q31: 339 | R31: 341 | S31: 329 | T31: 337 | U31: 328 | V31: 292 | W31: 307 | X31: 300 | Y31: 286 | Z31: 281 | AA31: 277 | AB31: 1407 | AC31: 1562 | AD31: 1414 | AE31: 1236 | AF31: 1082 | AG31: 968 | AH31: 814 | AI31: 661 | AJ31: 505 | AK31: 401 | AL31: 274 | AM31: 193 | AN31: 125 | AO31: 115 | AP31: 11 | AQ31: 92 | AR31: 98 | AS31: 274 | AT31: 8338 | AU31: 804 | AV31: 721 | AW31: 3883 | AX31: 327
B32: 130102 | C32: EL PORVENIR | D32: 00012229 | E32: Puesto de salud | F32: BARRIO 1 | G32: 30028 | H32: 346 | I32: 376 | J32: 405 | K32: 397 | L32: 425 | M32: 452 | N32: 610 | O32: 629 | P32: 619 | Q32: 616 | R32: 620 | S32: 599 | T32: 613 | U32: 596 | V32: 531 | W32: 558 | X32: 545 | Y32: 521 | Z32: 511 | AA32: 504 | AB32: 2557 | AC32: 2839 | AD32: 2570 | AE32: 2247 | AF32: 1967 | AG32: 1761 | AH32: 1480 | AI32: 1202 | AJ32: 918 | AK32: 728 | AL32: 498 | AM32: 351 | AN32: 228 | AO32: 209 | AP32: 20 | AQ32: 167 | AR32: 179 | AS32: 499 | AT32: 15157 | AU32: 1461 | AV32: 1311 | AW32: 7058 | AX32: 595
B33: 130102 | C33: EL PORVENIR | D33: 00013242 | E33: Puesto de salud | F33: SUPERVIVENCIA | G33: 5251 | H33: 60 | I33: 66 | J33: 71 | K33: 69 | L33: 74 | M33: 79 | N33: 107 | O33: 110 | P33: 108 | Q33: 108 | R33: 108 | S33: 105 | T33: 107 | U33: 104 | V33: 93 | W33: 98 | X33: 95 | Y33: 91 | Z33: 89 | AA33: 88 | AB33: 447 | AC33: 497 | AD33: 450 | AE33: 393 | AF33: 344 | AG33: 308 | AH33: 259 | AI33: 210 | AJ33: 161 | AK33: 127 | AL33: 87 | AM33: 61 | AN33: 40 | AO33: 37 | AP33: 4 | AQ33: 29 | AR33: 31 | AS33: 87 | AT33: 2652 | AU33: 256 | AV33: 229 | AW33: 1235 | AX33: 104
A34: 4 | B34: 130103 | C34: FLORENCIA DE MORA (3) | G34: 58444 | H34: =+SUM(H35:H38) -> 976 | I34: =+SUM(I35:I38) -> 1069 | J34: 974 | K34: 1165 | L34: 1244 | M34: 1242 | N34: 1053 | O34: 1096 | P34: =+SUM(P35:P38) -> 969 | Q34: 1074 | R34: 1098 | S34: 1041 | T34: 1069 | U34: 1057 | V34: 941 | W34: 940 | X34: 963 | Y34: 936 | Z34: 842 | AA34: 796 | AB34: 4407 | AC34: 5415 | AD34: 4630 | AE34: 4526 | AF34: 3830 | AG34: 3623 | AH34: 3147 | AI34: 2380 | AJ34: 1751 | AK34: 1421 | AL34: =+SUM(AL35:AL38) -> 1061 | AM34: 800 | AN34: 507 | AO34: 401 | AP34: 59 | AQ34: 475 | AR34: 503 | AS34: 1180 | AT34: 29208 | AU34: 2479 | AV34: 2234 | AW34: 13240 | AX34: 1558
B35: 130103 | C35: FLORENCIA DE MORA | D35: 00005217 | E35: Hospital distrital DE FLORENCIA DE MORA | F35: EL ESFUERZO | G35: 25926 | H35: 433 | I35: 474 | J35: 432 | K35: 517 | L35: 552 | M35: 551 | N35: 467 | O35: 486 | P35: 430 | Q35: 476 | R35: 487 | S35: 462 | T35: 474 | U35: 469 | V35: 417 | W35: 417 | X35: 427 | Y35: 415 | Z35: 374 | AA35: 353 | AB35: 1955 | AC35: 2402 | AD35: 2054 | AE35: 2008 | AF35: 1699 | AG35: 1607 | AH35: 1396 | AI35: 1056 | AJ35: 777 | AK35: 630 | AL35: 471 | AM35: 355 | AN35: 225 | AO35: 178 | AP35: 26 | AQ35: 211 | AR35: 223 | AS35: 523 | AT35: 12956 | AU35: 1100 | AV35: 991 | AW35: 5873 | AX35: 691
B36: 130103 | C36: FLORENCIA DE MORA | D36: 00017752 | E36: Puesto de salud | F36: LA CABAÑA | G36: 6819 | H36: 114 | I36: 125 | J36: 114 | K36: 136 | L36: 145 | M36: 145 | N36: 123 | O36: 128 | P36: 113 | Q36: 125 | R36: 128 | S36: 121 | T36: 125 | U36: 123 | V36: 110 | W36: 110 | X36: 112 | Y36: 109 | Z36: 98 | AA36: 93 | AB36: 514 | AC36: 632 | AD36: 540 | AE36: 528 | AF36: 447 | AG36: 423 | AH36: 367 | AI36: 278 | AJ36: 204 | AK36: 166 | AL36: 124 | AM36: 93 | AN36: 59 | AO36: 47 | AP36: 7 | AQ36: 55 | AR36: 59 | AS36: 138 | AT36: 3408 | AU36: 289 | AV36: 261 | AW36: 1545 | AX36: 182
B37: 130103 | C37: FLORENCIA DE MORA | D37: 00005218 | E37: Puesto de salud | F37: FLORENCIA DE MORA PARTE ALTA | G37: 10490 | H37: 175 | I37: 192 | J37: 175 | K37: 209 | L37: 223 | M37: 223 | N37: 189 | O37: 197 | P37: 174 | Q37: 193 | R37: 197 | S37: 187 | T37: 192 | U37: 190 | V37: 169 | W37: 169 | X37: 173 | Y37: 168 | Z37: 151 | AA37: 143 | AB37: 791 | AC37: 972 | AD37: 831 | AE37: 812 | AF37: 687 | AG37: 650 | AH37: 565 | AI37: 427 | AJ37: 314 | AK37: 255 | AL37: 190 | AM37: 144 | AN37: 91 | AO37: 72 | AP37: 11 | AQ37: 85 | AR37: 90 | AS37: 212 | AT37: 5242 | AU37: 445 | AV37: 401 | AW37: 2376 | AX37: 280
B38: 130103 | C38: FLORENCIA DE MORA | D38: 00005219 | E38: Puesto de salud | F38: SANTO TORIBIO DE MOGROVEJO | G38: 15209 | H38: 254 | I38: 278 | J38: 253 | K38: 303 | L38: 324 | M38: 323 | N38: 274 | O38: 285 | P38: 252 | Q38: 280 | R38: 286 | S38: 271 | T38: 278 | U38: 275 | V38: 245 | W38: 244 | X38: 251 | Y38: 244 | Z38: 219 | AA38: 207 | AB38: 1147 | AC38: 1409 | AD38: 1205 | AE38: 1178 | AF38: 997 | AG38: 943 | AH38: 819 | AI38: 619 | AJ38: 456 | AK38: 370 | AL38: 276 | AM38: 208 | AN38: 132 | AO38: 104 | AP38: 15 | AQ38: 124 | AR38: 131 | AS38: 307 | AT38: 7602 | AU38: 645 | AV38: 581 | AW38: 3446 | AX38: 405
A39: 7 | B39: 130104 | C39: HUANCHACO (4) | G39: 98559 | H39: =+SUM(H40:H46) -> 1236 | I39: =+SUM(I40:I46) -> 1338 | J39: 1318 | K39: 1272 | L39: 1287 | M39: 1314 | N39: 1946 | O39: 1994 | P39: 1966 | Q39: 1994 | R39: 2012 | S39: 1833 | T39: 2012 | U39: 1943 | V39: 1743 | W39: 1778 | X39: 1913 | Y39: 1747 | Z39: 1727 | AA39: 1722 | AB39: 8597 | AC39: 9827 | AD39: 8548 | AE39: 7455 | AF39: 6697 | AG39: 5677 | AH39: 4692 | AI39: 3747 | AJ39: 3017 | AK39: 2224 | AL39: 1596 | AM39: 1087 | AN39: 707 | AO39: 593 | AP39: 75 | AQ39: 543 | AR39: 694 | AS39: 1570 | AT39: 49658 | AU39: 4736 | AV39: 4439 | AW39: 23525 | AX39: 2654
B40: 130104 | C40: HUANCHACO | D40: 00005221 | E40: Centro de salud - camas de internamiento | F40: HUANCHACO | G40: 14343 | H40: 180 | I40: 195 | J40: 192 | K40: 185 | L40: 187 | M40: 191 | N40: 283 | O40: 290 | P40: 286 | Q40: 290 | R40: 293 | S40: 267 | T40: 293 | U40: 283 | V40: 254 | W40: 259 | X40: 278 | Y40: 254 | Z40: 251 | AA40: 251 | AB40: 1251 | AC40: 1430 | AD40: 1244 | AE40: 1085 | AF40: 975 | AG40: 826 | AH40: 683 | AI40: 545 | AJ40: 439 | AK40: 324 | AL40: 232 | AM40: 158 | AN40: 103 | AO40: 86 | AP40: 11 | AQ40: 79 | AR40: 101 | AS40: 228 | AT40: 7227 | AU40: 689 | AV40: 646 | AW40: 3424 | AX40: 386
B41: 130104 | C41: HUANCHACO | D41: 00005222 | E41: Centro de salud | F41: EL MILAGRO | G41: 40657 | H41: 510 | I41: 552 | J41: 544 | K41: 524 | L41: 531 | M41: 542 | N41: 803 | O41: 823 | P41: 811 | Q41: 823 | R41: 830 | S41: 757 | T41: 830 | U41: 801 | V41: 719 | W41: 733 | X41: 789 | Y41: 720 | Z41: 713 | AA41: 710 | AB41: 3546 | AC41: 4054 | AD41: 3526 | AE41: 3075 | AF41: 2763 | AG41: 2342 | AH41: 1935 | AI41: 1546 | AJ41: 1245 | AK41: 917 | AL41: 658 | AM41: 448 | AN41: 292 | AO41: 245 | AP41: 31 | AQ41: 224 | AR41: 286 | AS41: 648 | AT41: 20484 | AU41: 1954 | AV41: 1831 | AW41: 9704 | AX41: 1095
B42: 130104 | C42: HUANCHACO | D42: 00020157 | E42: Puesto de salud | F42: 1° DE MAYO- SECTOR 10 EL MILAGRO | G42: 12847 | H42: 161 | I42: 174 | J42: 172 | K42: 166 | L42: 168 | M42: 171 | N42: 254 | O42: 260 | P42: 256 | Q42: 260 | R42: 262 | S42: 239 | T42: 262 | U42: 253 | V42: 227 | W42: 232 | X42: 249 | Y42: 228 | Z42: 225 | AA42: 224 | AB42: 1121 | AC42: 1281 | AD42: 1114 | AE42: 972 | AF42: 873 | AG42: 740 | AH42: 612 | AI42: 489 | AJ42: 393 | AK42: 290 | AL42: 208 | AM42: 142 | AN42: 92 | AO42: 77 | AP42: 10 | AQ42: 71 | AR42: 90 | AS42: 205 | AT42: 6473 | AU42: 617 | AV42: 579 | AW42: 3067 | AX42: 346
B43: 130104 | C43: HUANCHACO | D43: 00011629 | E43: Puesto de salud | F43: HUANCHAQUITO | G43: 6953 | H43: 87 | I43: 94 | J43: 93 | K43: 90 | L43: 91 | M43: 93 | N43: 137 | O43: 141 | P43: 139 | Q43: 141 | R43: 142 | S43: 129 | T43: 142 | U43: 137 | V43: 123 | W43: 125 | X43: 135 | Y43: 123 | Z43: 122 | AA43: 121 | AB43: 606 | AC43: 693 | AD43: 603 | AE43: 526 | AF43: 472 | AG43: 401 | AH43: 331 | AI43: 264 | AJ43: 213 | AK43: 157 | AL43: 113 | AM43: 77 | AN43: 50 | AO43: 42 | AP43: 5 | AQ43: 38 | AR43: 49 | AS43: 111 | AT43: 3503 | AU43: 334 | AV43: 313 | AW43: 1659 | AX43: 187
B44: 130104 | C44: HUANCHACO | D44: 00011007 | E44: Puesto de salud | F44: EL TROPICO | G44: 7654 | H44: 96 | I44: 104 | J44: 102 | K44: 99 | L44: 100 | M44: 102 | N44: 151 | O44: 155 | P44: 153 | Q44: 155 | R44: 156 | S44: 142 | T44: 156 | U44: 151 | V44: 135 | W44: 138 | X44: 149 | Y44: 136 | Z44: 134 | AA44: 134 | AB44: 668 | AC44: 763 | AD44: 664 | AE44: 579 | AF44: 520 | AG44: 441 | AH44: 364 | AI44: 291 | AJ44: 234 | AK44: 173 | AL44: 124 | AM44: 84 | AN44: 55 | AO44: 46 | AP44: 6 | AQ44: 42 | AR44: 54 | AS44: 122 | AT44: 3857 | AU44: 368 | AV44: 345 | AW44: 1827 | AX44: 206
B45: 130104 | C45: HUANCHACO | D45: 00012228 | E45: Puesto de salud | F45: VICTOR RAUL HAYA DE LA TORRE | G45: 13024 | H45: 163 | I45: 177 | J45: 174 | K45: 168 | L45: 170 | M45: 174 | N45: 257 | O45: 263 | P45: 260 | Q45: 263 | R45: 266 | S45: 242 | T45: 266 | U45: 257 | V45: 230 | W45: 235 | X45: 253 | Y45: 231 | Z45: 228 | AA45: 228 | AB45: 1136 | AC45: 1299 | AD45: 1130 | AE45: 985 | AF45: 885 | AG45: 750 | AH45: 620 | AI45: 495 | AJ45: 399 | AK45: 294 | AL45: 211 | AM45: 144 | AN45: 93 | AO45: 78 | AP45: 10 | AQ45: 72 | AR45: 92 | AS45: 207 | AT45: 6562 | AU45: 626 | AV45: 586 | AW45: 3109 | AX45: 351
B46: 130104 | C46: HUANCHACO | D46: 00005223 | E46: Puesto de salud | F46: VILLA DEL MAR | G46: 3081 | H46: 39 | I46: 42 | J46: 41 | K46: 40 | L46: 40 | M46: 41 | N46: 61 | O46: 62 | P46: 61 | Q46: 62 | R46: 63 | S46: 57 | T46: 63 | U46: 61 | V46: 55 | W46: 56 | X46: 60 | Y46: 55 | Z46: 54 | AA46: 54 | AB46: 269 | AC46: 307 | AD46: 267 | AE46: 233 | AF46: 209 | AG46: 177 | AH46: 147 | AI46: 117 | AJ46: 94 | AK46: 69 | AL46: 50 | AM46: 34 | AN46: 22 | AO46: 19 | AP46: 2 | AQ46: 17 | AR46: 22 | AS46: 49 | AT46: 1552 | AU46: 148 | AV46: 139 | AW46: 735 | AX46: 83
A47: 7 | B47: 130105 | C47: LA ESPERANZA (5) | G47: 238504 | H47: =+SUM(H48:H54) -> 2668 | I47: =+SUM(I48:I54) -> 2914 | J47: 2790 | K47: 2887 | L47: 3137 | M47: 3410 | N47: 4412 | O47: 4367 | P47: 4535 | Q47: 4561 | R47: 4449 | S47: 4353 | T47: 4488 | U47: 4317 | V47: 3833 | W47: 3824 | X47: 4005 | Y47: 3768 | Z47: 3546 | AA47: 3571 | AB47: 18700 | AC47: 22985 | AD47: 20732 | AE47: 18472 | AF47: 16107 | AG47: 14334 | AH47: 12470 | AI47: 10978 | AJ47: 8835 | AK47: 6888 | AL47: 4887 | AM47: 3457 | AN47: 2073 | AO47: 1751 | AP47: 153 | AQ47: 1216 | AR47: 1450 | AS47: 3396 | AT47: 120206 | AU47: 10516 | AV47: 9210 | AW47: 55435 | AX47: 4257
B48: 130105 | C48: LA ESPERANZA | D48: 00005226 | E48: Hospital distrital DE LA ESPERANZA | F48: JERUSALEN | G48: 56134 | H48: 628 | I48: 686 | J48: 657 | K48: 679 | L48: 738 | M48: 803 | N48: 1038 | O48: 1028 | P48: 1067 | Q48: 1073 | R48: 1047 | S48: 1024 | T48: 1056 | U48: 1016 | V48: 902 | W48: 900 | X48: 943 | Y48: 887 | Z48: 835 | AA48: 841 | AB48: 4402 | AC48: 5410 | AD48: 4879 | AE48: 4347 | AF48: 3791 | AG48: 3374 | AH48: 2935 | AI48: 2584 | AJ48: 2079 | AK48: 1621 | AL48: 1150 | AM48: 814 | AN48: 488 | AO48: 412 | AP48: 36 | AQ48: 286 | AR48: 341 | AS48: 799 | AT48: 28291 | AU48: 2475 | AV48: 2168 | AW48: 13047 | AX48: 1002
B49: 130105 | C49: LA ESPERANZA | D49: 00005230 | E49: Centro de salud - camas de internamiento | F49: WICHANZAO | G49: 72592 | H49: 812 | I49: 887 | J49: 849 | K49: 879 | L49: 955 | M49: 1038 | N49: 1343 | O49: 1329 | P49: 1380 | Q49: 1388 | R49: 1354 | S49: 1325 | T49: 1366 | U49: 1314 | V49: 1167 | W49: 1164 | X49: 1219 | Y49: 1147 | Z49: 1079 | AA49: 1087 | AB49: 5692 | AC49: 6996 | AD49: 6310 | AE49: 5622 | AF49: 4902 | AG49: 4363 | AH49: 3796 | AI49: 3341 | AJ49: 2689 | AK49: 2096 | AL49: 1487 | AM49: 1052 | AN49: 631 | AO49: 533 | AP49: 47 | AQ49: 370 | AR49: 441 | AS49: 1034 | AT49: 36587 | AU49: 3200 | AV49: 2803 | AW49: 16873 | AX49: 1296
B50: 130105 | C50: LA ESPERANZA | D50: 00005229 | E50: Centro de salud | F50: BELLAVISTA | G50: 36591 | H50: 409 | I50: 447 | J50: 428 | K50: 443 | L50: 481 | M50: 523 | N50: 677 | O50: 670 | P50: 696 | Q50: 700 | R50: 682 | S50: 668 | T50: 689 | U50: 662 | V50: 588 | W50: 587 | X50: 614 | Y50: 578 | Z50: 544 | AA50: 548 | AB50: 2869 | AC50: 3526 | AD50: 3181 | AE50: 2834 | AF50: 2471 | AG50: 2199 | AH50: 1913 | AI50: 1684 | AJ50: 1356 | AK50: 1057 | AL50: 750 | AM50: 530 | AN50: 318 | AO50: 269 | AP50: 23 | AQ50: 187 | AR50: 222 | AS50: 521 | AT50: 18443 | AU50: 1613 | AV50: 1413 | AW50: 8505 | AX50: 653
B51: 130105 | C51: LA ESPERANZA | D51: 00005227 | E51: Puesto de salud | F51: SAN MARTIN | G51: 19660 | H51: 220 | I51: 240 | J51: 230 | K51: 238 | L51: 259 | M51: 281 | N51: 364 | O51: 360 | P51: 374 | Q51: 376 | R51: 367 | S51: 359 | T51: 370 | U51: 356 | V51: 316 | W51: 315 | X51: 330 | Y51: 311 | Z51: 292 | AA51: 294 | AB51: 1541 | AC51: 1894 | AD51: 1709 | AE51: 1523 | AF51: 1328 | AG51: 1181 | AH51: 1028 | AI51: 905 | AJ51: 728 | AK51: 568 | AL51: 403 | AM51: 285 | AN51: 171 | AO51: 144 | AP51: 13 | AQ51: 100 | AR51: 120 | AS51: 280 | AT51: 9908 | AU51: 867 | AV51: 759 | AW51: 4569 | AX51: 351
B52: 130105 | C52: LA ESPERANZA | D52: 00005228 | E52: Puesto de salud | F52: PUEBLO LIBRE | G52: 19184 | H52: 215 | I52: 234 | J52: 224 | K52: 232 | L52: 252 | M52: 274 | N52: 355 | O52: 351 | P52: 365 | Q52: 367 | R52: 358 | S52: 350 | T52: 361 | U52: 347 | V52: 308 | W52: 308 | X52: 322 | Y52: 303 | Z52: 285 | AA52: 287 | AB52: 1504 | AC52: 1849 | AD52: 1668 | AE52: 1486 | AF52: 1296 | AG52: 1153 | AH52: 1003 | AI52: 883 | AJ52: 711 | AK52: 554 | AL52: 393 | AM52: 278 | AN52: 167 | AO52: 141 | AP52: 12 | AQ52: 98 | AR52: 117 | AS52: 273 | AT52: 9669 | AU52: 846 | AV52: 741 | AW52: 4459 | AX52: 342
B53: 130105 | C53: LA ESPERANZA | D53: 00007115 | E53: Puesto de salud | F53: MANUEL AREVALO | G53: 25460 | H53: 285 | I53: 311 | J53: 298 | K53: 308 | L53: 335 | M53: 364 | N53: 471 | O53: 466 | P53: 484 | Q53: 487 | R53: 475 | S53: 465 | T53: 479 | U53: 461 | V53: 409 | W53: 408 | X53: 428 | Y53: 402 | Z53: 379 | AA53: 381 | AB53: 1996 | AC53: 2454 | AD53: 2213 | AE53: 1972 | AF53: 1719 | AG53: 1530 | AH53: 1331 | AI53: 1172 | AJ53: 943 | AK53: 735 | AL53: 522 | AM53: 369 | AN53: 221 | AO53: 187 | AP53: 16 | AQ53: 130 | AR53: 155 | AS53: 363 | AT53: 12832 | AU53: 1123 | AV53: 983 | AW53: 5918 | AX53: 454
B54: 130105 | C54: LA ESPERANZA | D54: 00005225 | E54: Centro de salud | F54: SANTISIMO SACRAMENTO | G54: 8883 | H54: 99 | I54: 109 | J54: 104 | K54: 108 | L54: 117 | M54: 127 | N54: 164 | O54: 163 | P54: 169 | Q54: 170 | R54: 166 | S54: 162 | T54: 167 | U54: 161 | V54: 143 | W54: 142 | X54: 149 | Y54: 140 | Z54: 132 | AA54: 133 | AB54: 696 | AC54: 856 | AD54: 772 | AE54: 688 | AF54: 600 | AG54: 534 | AH54: 464 | AI54: 409 | AJ54: 329 | AK54: 257 | AL54: 182 | AM54: 129 | AN54: 77 | AO54: 65 | AP54: 6 | AQ54: 45 | AR54: 54 | AS54: 126 | AT54: 4476 | AU54: 392 | AV54: 343 | AW54: 2064 | AX54: 159
A55: 3 | B55: 130106 | C55: LAREDO (6) | G55: 53830 | H55: =+SUM(H56:H58) -> 594 | I55: =+SUM(I56:I58) -> 611 | J55: 609 | K55: 609 | L55: 618 | M55: 655 | N55: 906 | O55: 952 | P55: 922 | Q55: 912 | R55: 1011 | S55: 937 | T55: 977 | U55: 944 | V55: 904 | W55: 898 | X55: 890 | Y55: 822 | Z55: 800 | AA55: 741 | AB55: 4196 | AC55: 4675 | AD55: 4356 | AE55: 4224 | AF55: 3632 | AG55: 3174 | AH55: 2863 | AI55: 2744 | AJ55: 2362 | AK55: 1859 | AL55: 1272 | AM55: 935 | AN55: 657 | AO55: 569 | AP55: 33 | AQ55: 289 | AR55: 306 | AS55: 687 | AT55: 27129 | AU55: 2376 | AV55: 2075 | AW55: 12175 | AX55: 1209
B56: 130106 | C56: LAREDO | D56: 00005231 | E56: Hospital distrital DE LAREDO | F56: LAREDO | G56: 41949 | H56: 463 | I56: 476 | J56: 475 | K56: 475 | L56: 482 | M56: 510 | N56: 706 | O56: 742 | P56: 718 | Q56: 711 | R56: 788 | S56: 730 | T56: 761 | U56: 736 | V56: 705 | W56: 700 | X56: 694 | Y56: 640 | Z56: 623 | AA56: 577 | AB56: 3270 | AC56: 3643 | AD56: 3395 | AE56: 3292 | AF56: 2830 | AG56: 2474 | AH56: 2231 | AI56: 2138 | AJ56: 1841 | AK56: 1449 | AL56: 991 | AM56: 728 | AN56: 512 | AO56: 443 | AP56: 26 | AQ56: 225 | AR56: 238 | AS56: 535 | AT56: 21142 | AU56: 1852 | AV56: 1617 | AW56: 9488 | AX56: 942
B57: 130106 | C57: LAREDO | D57: 00005232 | E57: Puesto de salud | F57: MENOCUCHO | G57: 8044 | H57: 89 | I57: 91 | J57: 91 | K57: 91 | L57: 92 | M57: 98 | N57: 135 | O57: 142 | P57: 138 | Q57: 136 | R57: 151 | S57: 140 | T57: 146 | U57: 141 | V57: 135 | W57: 134 | X57: 133 | Y57: 123 | Z57: 120 | AA57: 111 | AB57: 627 | AC57: 699 | AD57: 651 | AE57: 631 | AF57: 543 | AG57: 474 | AH57: 428 | AI57: 410 | AJ57: 353 | AK57: 278 | AL57: 190 | AM57: 140 | AN57: 98 | AO57: 85 | AP57: 5 | AQ57: 43 | AR57: 46 | AS57: 103 | AT57: 4054 | AU57: 355 | AV57: 310 | AW57: 1819 | AX57: 181
B58: 130106 | C58: LAREDO | D58: 00005233 | E58: Puesto de salud | F58: SANTO DOMINGO | G58: 3837 | H58: 42 | I58: 44 | J58: 43 | K58: 43 | L58: 44 | M58: 47 | N58: 65 | O58: 68 | P58: 66 | Q58: 65 | R58: 72 | S58: 67 | T58: 70 | U58: 67 | V58: 64 | W58: 64 | X58: 63 | Y58: 59 | Z58: 57 | AA58: 53 | AB58: 299 | AC58: 333 | AD58: 310 | AE58: 301 | AF58: 259 | AG58: 226 | AH58: 204 | AI58: 196 | AJ58: 168 | AK58: 132 | AL58: 91 | AM58: 67 | AN58: 47 | AO58: 41 | AP58: 2 | AQ58: 21 | AR58: 22 | AS58: 49 | AT58: 1933 | AU58: 169 | AV58: 148 | AW58: 868 | AX58: 86
A59: 6 | B59: 130107 | C59: MOCHE (7) | G59: 45469 | H59: =+SUM(H60:H65) -> 619 | I59: =+SUM(I60:I65) -> 674 | J59: 681 | K59: 712 | L59: 795 | M59: 752 | N59: 811 | O59: 893 | P59: 890 | Q59: 871 | R59: 870 | S59: 808 | T59: 842 | U59: 774 | V59: 760 | W59: 735 | X59: 706 | Y59: 770 | Z59: 680 | AA59: 680 | AB59: 3437 | AC59: 4214 | AD59: 3752 | AE59: 3543 | AF59: 3205 | AG59: 2685 | AH59: 2253 | AI59: 1982 | AJ59: 1587 | AK59: 1180 | AL59: 902 | AM59: 631 | AN59: 395 | AO59: 380 | AP59: 35 | AQ59: 285 | AR59: 335 | AS59: 808 | AT59: 22885 | AU59: 2018 | AV59: 1783 | AW59: 10450 | AX59: 1241
B60: 130107 | C60: MOCHE | D60: 00007152 | E60: Hospital | F60: ALTO MOCHE-WALTER CRUZ VILCA | G60: 6469 | H60: 88 | I60: 96 | J60: 97 | K60: 101 | L60: 113 | M60: 107 | N60: 115 | O60: 127 | P60: 127 | Q60: 124 | R60: 124 | S60: 115 | T60: 120 | U60: 110 | V60: 108 | W60: 105 | X60: 100 | Y60: 110 | Z60: 97 | AA60: 97 | AB60: 489 | AC60: 599 | AD60: 534 | AE60: 504 | AF60: 456 | AG60: 382 | AH60: 320 | AI60: 282 | AJ60: 226 | AK60: 168 | AL60: 128 | AM60: 90 | AN60: 56 | AO60: 54 | AP60: 5 | AQ60: 41 | AR60: 48 | AS60: 115 | AT60: 3256 | AU60: 287 | AV60: 254 | AW60: 1487 | AX60: 177
B61: 130107 | C61: MOCHE | D61: 00005234 | E61: Centro de salud - camas de internamiento | F61: SANTA LUCIA DE MOCHE | G61: 16217 | H61: 221 | I61: 240 | J61: 243 | K61: 254 | L61: 284 | M61: 268 | N61: 289 | O61: 319 | P61: 317 | Q61: 311 | R61: 310 | S61: 288 | T61: 300 | U61: 276 | V61: 271 | W61: 262 | X61: 252 | Y61: 275 | Z61: 242 | AA61: 242 | AB61: 1226 | AC61: 1503 | AD61: 1338 | AE61: 1264 | AF61: 1143 | AG61: 958 | AH61: 803 | AI61: 707 | AJ61: 566 | AK61: 421 | AL61: 322 | AM61: 225 | AN61: 141 | AO61: 136 | AP61: 12 | AQ61: 102 | AR61: 119 | AS61: 288 | AT61: 8163 | AU61: 720 | AV61: 636 | AW61: 3728 | AX61: 443
B62: 130107 | C62: MOCHE | D62: 00005235 | E62: Centro de salud | F62: ALTO MOCHE | G62: 6937 | H62: 94 | I62: 103 | J62: 104 | K62: 109 | L62: 121 | M62: 115 | N62: 124 | O62: 136 | P62: 136 | Q62: 133 | R62: 133 | S62: 123 | T62: 128 | U62: 118 | V62: 116 | W62: 112 | X62: 108 | Y62: 117 | Z62: 104 | AA62: 104 | AB62: 524 | AC62: 643 | AD62: 572 | AE62: 541 | AF62: 489 | AG62: 410 | AH62: 344 | AI62: 302 | AJ62: 242 | AK62: 180 | AL62: 138 | AM62: 96 | AN62: 60 | AO62: 58 | AP62: 5 | AQ62: 43 | AR62: 51 | AS62: 123 | AT62: 3492 | AU62: 308 | AV62: 272 | AW62: 1594 | AX62: 189
B63: 130107 | C63: MOCHE | D63: 00005236 | E63: Puesto de salud | F63: ELIO JACOBO CAFFO | G63: 4594 | H63: 63 | I63: 68 | J63: 69 | K63: 72 | L63: 80 | M63: 76 | N63: 82 | O63: 90 | P63: 90 | Q63: 88 | R63: 88 | S63: 82 | T63: 85 | U63: 78 | V63: 77 | W63: 74 | X63: 71 | Y63: 78 | Z63: 69 | AA63: 69 | AB63: 347 | AC63: 426 | AD63: 379 | AE63: 358 | AF63: 324 | AG63: 271 | AH63: 228 | AI63: 200 | AJ63: 160 | AK63: 119 | AL63: 91 | AM63: 64 | AN63: 40 | AO63: 38 | AP63: 4 | AQ63: 29 | AR63: 34 | AS63: 82 | AT63: 2312 | AU63: 204 | AV63: 180 | AW63: 1056 | AX63: 125
B64: 130107 | C64: MOCHE | D64: 00005237 | E64: Puesto de salud | F64: SAN PEDRO - DELICIAS | G64: 7218 | H64: 98 | I64: 107 | J64: 108 | K64: 113 | L64: 126 | M64: 119 | N64: 129 | O64: 142 | P64: 141 | Q64: 138 | R64: 138 | S64: 128 | T64: 134 | U64: 123 | V64: 121 | W64: 117 | X64: 112 | Y64: 122 | Z64: 108 | AA64: 108 | AB64: 546 | AC64: 669 | AD64: 596 | AE64: 562 | AF64: 509 | AG64: 426 | AH64: 358 | AI64: 315 | AJ64: 252 | AK64: 187 | AL64: 143 | AM64: 100 | AN64: 63 | AO64: 60 | AP64: 6 | AQ64: 45 | AR64: 53 | AS64: 128 | AT64: 3633 | AU64: 320 | AV64: 283 | AW64: 1659 | AX64: 197
B65: 130107 | C65: MOCHE | D65: 00007151 | E65: Puesto de salud | F65: CURVA DE SUN | G65: 4034 | H65: 55 | I65: 60 | J65: 60 | K65: 63 | L65: 71 | M65: 67 | N65: 72 | O65: 79 | P65: 79 | Q65: 77 | R65: 77 | S65: 72 | T65: 75 | U65: 69 | V65: 67 | W65: 65 | X65: 63 | Y65: 68 | Z65: 60 | AA65: 60 | AB65: 305 | AC65: 374 | AD65: 333 | AE65: 314 | AF65: 284 | AG65: 238 | AH65: 200 | AI65: 176 | AJ65: 141 | AK65: 105 | AL65: 80 | AM65: 56 | AN65: 35 | AO65: 34 | AP65: 3 | AQ65: 25 | AR65: 30 | AS65: 72 | AT65: 2029 | AU65: 179 | AV65: 158 | AW65: 926 | AX65: 110
A66: 1 | B66: 130108 | C66: POROTO (8) | G66: 5021 | H66: =+H67 -> 54 | I66: =+I67 -> 49 | J66: 50 | K66: 59 | L66: 64 | M66: 80 | N66: 91 | O66: 77 | P66: 87 | Q66: 84 | R66: 86 | S66: 99 | T66: 91 | U66: 90 | V66: 75 | W66: 84 | X66: 95 | Y66: 81 | Z66: 79 | AA66: 96 | AB66: 380 | AC66: 412 | AD66: 395 | AE66: 368 | AF66: 357 | AG66: 327 | AH66: 300 | AI66: 229 | AJ66: 174 | AK66: 175 | AL66: 112 | AM66: 80 | AN66: 72 | AO66: 69 | AP66: 6 | AQ66: 22 | AR66: 32 | AS66: 64 | AT66: 2512 | AU66: 221 | AV66: 224 | AW66: 1134 | AX66: 87
B67: 130108 | C67: POROTO | D67: 00005238 | E67: Centro de salud | F67: POROTO | G67: 5021 | H67: 54 | I67: 49 | J67: 50 | K67: 59 | L67: 64 | M67: 80 | N67: 91 | O67: 77 | P67: 87 | Q67: 84 | R67: 86 | S67: 99 | T67: 91 | U67: 90 | V67: 75 | W67: 84 | X67: 95 | Y67: 81 | Z67: 79 | AA67: 96 | AB67: 380 | AC67: 412 | AD67: 395 | AE67: 368 | AF67: 357 | AG67: 327 | AH67: 300 | AI67: 229 | AJ67: 174 | AK67: 175 | AL67: 112 | AM67: 80 | AN67: 72 | AO67: 69 | AP67: 6 | AQ67: 22 | AR67: 32 | AS67: 64 | AT67: 2512 | AU67: 221 | AV67: 224 | AW67: 1134 | AX67: 87
A68: 2 | B68: 130109 | C68: SALAVERRY (9) | G68: 28240 | H68: =+SUM(H69:H70) -> 370 | I68: =+SUM(I69:I70) -> 419 | J68: 389 | K68: 398 | L68: 399 | M68: 365 | N68: 513 | O68: 520 | P68: 545 | Q68: 480 | R68: 499 | S68: 506 | T68: 523 | U68: 556 | V68: 441 | W68: 506 | X68: 466 | Y68: 499 | Z68: 479 | AA68: 532 | AB68: 2356 | AC68: 2766 | AD68: 2340 | AE68: 2171 | AF68: 1898 | AG68: 1650 | AH68: 1400 | AI68: 1135 | AJ68: 975 | AK68: 691 | AL68: 561 | AM68: 420 | AN68: 285 | AO68: 187 | AP68: 31 | AQ68: 171 | AR68: 199 | AS68: 493 | AT68: 14261 | AU68: 1213 | AV68: 1200 | AW68: 6667 | AX68: 669
B69: 130109 | C69: SALAVERRY | D69: 00005239 | E69: Centro de salud - camas de internamiento | F69: SALAVERRY | G69: 18226 | H69: 239 | I69: 270 | J69: 251 | K69: 257 | L69: 257 | M69: 236 | N69: 331 | O69: 336 | P69: 352 | Q69: 310 | R69: 322 | S69: 327 | T69: 338 | U69: 359 | V69: 285 | W69: 327 | X69: 301 | Y69: 322 | Z69: 309 | AA69: 343 | AB69: 1520 | AC69: 1785 | AD69: 1510 | AE69: 1401 | AF69: 1225 | AG69: 1065 | AH69: 903 | AI69: 732 | AJ69: 629 | AK69: 446 | AL69: 362 | AM69: 271 | AN69: 184 | AO69: 121 | AP69: 20 | AQ69: 110 | AR69: 128 | AS69: 318 | AT69: 9203 | AU69: 783 | AV69: 774 | AW69: 4303 | AX69: 432
B70: 130109 | C70: SALAVERRY | D70: 00005240 | E70: Puesto de salud | F70: AURORA DIAZ | G70: 10014 | H70: 131 | I70: 149 | J70: 138 | K70: 141 | L70: 142 | M70: 129 | N70: 182 | O70: 184 | P70: 193 | Q70: 170 | R70: 177 | S70: 179 | T70: 185 | U70: 197 | V70: 156 | W70: 179 | X70: 165 | Y70: 177 | Z70: 170 | AA70: 189 | AB70: 836 | AC70: 981 | AD70: 830 | AE70: 770 | AF70: 673 | AG70: 585 | AH70: 497 | AI70: 403 | AJ70: 346 | AK70: 245 | AL70: 199 | AM70: 149 | AN70: 101 | AO70: 66 | AP70: 11 | AQ70: 61 | AR70: 71 | AS70: 175 | AT70: 5058 | AU70: 430 | AV70: 426 | AW70: 2364 | AX70: 237
A71: 1 | B71: 130110 | C71: SIMBAL (10) | G71: 5944 | H71: =+H72 -> 76 | I71: =+I72 -> 94 | J71: 97 | K71: 66 | L71: 78 | M71: 76 | N71: 89 | O71: 107 | P71: 89 | Q71: 99 | R71: 101 | S71: 103 | T71: 90 | U71: 75 | V71: 116 | W71: 77 | X71: 101 | Y71: 86 | Z71: 85 | AA71: 83 | AB71: 440 | AC71: 516 | AD71: 441 | AE71: 456 | AF71: 381 | AG71: 354 | AH71: 354 | AI71: 281 | AJ71: 234 | AK71: 255 | AL71: 143 | AM71: 111 | AN71: 95 | AO71: 95 | AP71: 3 | AQ71: 39 | AR71: 37 | AS71: 121 | AT71: 2975 | AU71: 253 | AV71: 221 | AW71: 1300 | AX71: 247
B72: 130110 | C72: SIMBAL | D72: 00005241 | E72: Puesto de salud | F72: SIMBAL | G72: 5944 | H72: 76 | I72: 94 | J72: 97 | K72: 66 | L72: 78 | M72: 76 | N72: 89 | O72: 107 | P72: 89 | Q72: 99 | R72: 101 | S72: 103 | T72: 90 | U72: 75 | V72: 116 | W72: 77 | X72: 101 | Y72: 86 | Z72: 85 | AA72: 83 | AB72: 440 | AC72: 516 | AD72: 441 | AE72: 456 | AF72: 381 | AG72: 354 | AH72: 354 | AI72: 281 | AJ72: 234 | AK72: 255 | AL72: 143 | AM72: 111 | AN72: 95 | AO72: 95 | AP72: 3 | AQ72: 39 | AR72: 37 | AS72: 121 | AT72: 2975 | AU72: 253 | AV72: 221 | AW72: 1300 | AX72: 247
A73: 5 | B73: 130111 | C73: VICTOR LARCO HERRERA (11) | G73: 86985 | H73: =+SUM(H74:H78) -> 753 | I73: =+SUM(I74:I78) -> 817 | J73: 914 | K73: 993 | L73: 1110 | M73: 1076 | N73: 1409 | O73: 1437 | P73: 1503 | Q73: 1516 | R73: 1459 | S73: 1332 | T73: 1424 | U73: 1386 | V73: 1284 | W73: 1319 | X73: 1347 | Y73: 1355 | Z73: 1359 | AA73: 1352 | AB73: 6449 | AC73: 7429 | AD73: 7081 | AE73: 6421 | AF73: 6427 | AG73: 5907 | AH73: 5058 | AI73: 4258 | AJ73: 3689 | AK73: 3107 | AL73: 2366 | AM73: 1718 | AN73: 1051 | AO73: 879 | AP73: 45 | AQ73: 367 | AR73: 387 | AS73: 1047 | AT73: 43953 | AU73: 3256 | AV73: 3267 | AW73: 19989 | AX73: 1686
B74: 130111 | C74: VICTOR LARCO HERRERA | D74: 00005243 | E74: Hospital | F74: VISTA ALEGRE | G74: 27419 | H74: 237 | I74: 258 | J74: 288 | K74: 313 | L74: 350 | M74: 339 | N74: 444 | O74: 453 | P74: 474 | Q74: 478 | R74: 460 | S74: 420 | T74: 449 | U74: 437 | V74: 405 | W74: 416 | X74: 425 | Y74: 427 | Z74: 428 | AA74: 426 | AB74: 2033 | AC74: 2342 | AD74: 2232 | AE74: 2024 | AF74: 2026 | AG74: 1862 | AH74: 1594 | AI74: 1342 | AJ74: 1163 | AK74: 979 | AL74: 746 | AM74: 541 | AN74: 331 | AO74: 277 | AP74: 14 | AQ74: 116 | AR74: 122 | AS74: 330 | AT74: 13855 | AU74: 1026 | AV74: 1030 | AW74: 6301 | AX74: 531
B75: 130111 | C75: VICTOR LARCO HERRERA | D75: 00005242 | E75: Centro de salud | F75: VICTOR LARCO HERRERA | G75: =+SUM(H75:AO75) -> 13552 | H75: 117 | I75: 127 | J75: 142 | K75: 155 | L75: 173 | M75: 168 | N75: 220 | O75: 224 | P75: 234 | Q75: 236 | R75: 227 | S75: 208 | T75: 222 | U75: 216 | V75: 200 | W75: 205 | X75: 210 | Y75: 211 | Z75: 212 | AA75: 211 | AB75: 1005 | AC75: 1157 | AD75: 1103 | AE75: 1000 | AF75: 1001 | AG75: 920 | AH75: 788 | AI75: 663 | AJ75: 575 | AK75: 484 | AL75: 369 | AM75: 268 | AN75: 164 | AO75: 137 | AP75: 7 | AQ75: 57 | AR75: 60 | AS75: 163 | AT75: 6848 | AU75: 507 | AV75: 509 | AW75: 3114 | AX75: 263
B76: 130111 | C76: VICTOR LARCO HERRERA | D76: 00005245 | E76: Centro de salud | F76: LIBERACION SOCIAL | G76: 19382 | H76: 168 | I76: 182 | J76: 204 | K76: 221 | L76: 247 | M76: 240 | N76: 314 | O76: 320 | P76: 335 | Q76: 338 | R76: 325 | S76: 297 | T76: 317 | U76: 309 | V76: 286 | W76: 294 | X76: 300 | Y76: 302 | Z76: 303 | AA76: 301 | AB76: 1437 | AC76: 1655 | AD76: 1578 | AE76: 1431 | AF76: 1432 | AG76: 1316 | AH76: 1127 | AI76: 949 | AJ76: 822 | AK76: 692 | AL76: 527 | AM76: 383 | AN76: 234 | AO76: 196 | AP76: 10 | AQ76: 82 | AR76: 86 | AS76: 233 | AT76: 9794 | AU76: 726 | AV76: 728 | AW76: 4454 | AX76: 376
B77: 130111 | C77: VICTOR LARCO HERRERA | D77: 00005244 | E77: Puesto de salud | F77: BUENOS AIRES SUR | G77: 15443 | H77: 134 | I77: 145 | J77: 162 | K77: 176 | L77: 197 | M77: 191 | N77: 250 | O77: 255 | P77: 267 | Q77: 269 | R77: 259 | S77: 236 | T77: 253 | U77: 246 | V77: 228 | W77: 234 | X77: 239 | Y77: 241 | Z77: 241 | AA77: 240 | AB77: 1145 | AC77: 1319 | AD77: 1257 | AE77: 1140 | AF77: 1141 | AG77: 1049 | AH77: 898 | AI77: 756 | AJ77: 655 | AK77: 552 | AL77: 420 | AM77: 305 | AN77: 187 | AO77: 156 | AP77: 8 | AQ77: 65 | AR77: 69 | AS77: 186 | AT77: 7803 | AU77: 578 | AV77: 580 | AW77: 3549 | AX77: 299
B78: 130111 | C78: VICTOR LARCO HERRERA | D78: 00005246 | E78: Puesto de salud | F78: HUAMAN | G78: 11189 | H78: 97 | I78: 105 | J78: 118 | K78: 128 | L78: 143 | M78: 138 | N78: 181 | O78: 185 | P78: 193 | Q78: 195 | R78: 188 | S78: 171 | T78: 183 | U78: 178 | V78: 165 | W78: 170 | X78: 173 | Y78: 174 | Z78: 175 | AA78: 174 | AB78: 829 | AC78: 956 | AD78: 911 | AE78: 826 | AF78: 827 | AG78: 760 | AH78: 651 | AI78: 548 | AJ78: 474 | AK78: 400 | AL78: 304 | AM78: 221 | AN78: 135 | AO78: 113 | AP78: 6 | AQ78: 47 | AR78: 50 | AS78: 135 | AT78: 5653 | AU78: 419 | AV78: 420 | AW78: 2571 | AX78: 217
A79: 1 | B79: 13012 | C79: ALTO TRUJILLO (12) | G79: 0 | H79: 0 | I79: 0 | J79: 0 | K79: 0 | L79: 0 | M79: 0 | N79: 0 | O79: 0 | P79: 0 | Q79: 0 | R79: 0 | S79: 0 | T79: 0 | U79: 0 | V79: 0 | W79: 0 | X79: 0 | Y79: 0 | Z79: 0 | AA79: 0 | AB79: 0 | AC79: 0 | AD79: 0 | AE79: 0 | AF79: 0 | AG79: 0 | AH79: 0 | AI79: 0 | AJ79: 0 | AK79: 0 | AL79: 0 | AM79: 0 | AN79: 0 | AO79: 0 | AP79: 0 | AQ79: 0 | AR79: 0 | AS79: 0 | AT79: 0 | AU79: 0 | AV79: 0 | AW79: 0 | AX79: 0
B80: 130121 | C80: ALTO TRUJILLO | D80: - | E80: sin designacion | F80: sin designacion | G80: 0 | H80: 0 | I80: 0 | J80: 0 | K80: 0 | L80: 0 | M80: 0 | N80: 0 | O80: 0 | P80: 0 | Q80: 0 | R80: 0 | S80: 0 | T80: 0 | U80: 0 | V80: 0 | W80: 0 | X80: 0 | Y80: 0 | Z80: 0 | AA80: 0 | AB80: 0 | AC80: 0 | AD80: 0 | AE80: 0 | AF80: 0 | AG80: 0 | AH80: 0 | AI80: 0 | AJ80: 0 | AK80: 0 | AL80: 0 | AM80: 0 | AN80: 0 | AO80: 0 | AP80: 0 | AQ80: 0 | AR80: 0 | AS80: 0 | AT80: 0 | AU80: 0 | AV80: 0 | AW80: 0 | AX80: 0
A81: =+SUM(A82:A103) -> 14 | B81: 130200 | C81: ASCOPE (2) | G81: 124490 | H81: =+H82+H84+H87+H90+H92+H95+H97+H100 -> 1475 | I81: 1637 | J81: 1686 | K81: 1677 | L81: 1741 | M81: 1840 | N81: 1973 | O81: 2010 | P81: 2086 | Q81: 2006 | R81: 2015 | S81: 1995 | T81: 2081 | U81: 2135 | V81: 1950 | W81: 2015 | X81: 2024 | Y81: 1976 | Z81: 1829 | AA81: 1823 | AB81: 9075 | AC81: 9571 | AD81: 8491 | AE81: 8491 | AF81: 8144 | AG81: 7698 | AH81: 7258 | AI81: 7230 | AJ81: 6181 | AK81: 4757 | AL81: 3466 | AM81: 2563 | AN81: 1851 | AO81: 1740 | AP81: 66 | AQ81: 696 | AR81: 780 | AS81: 2051 | AT81: 62655 | AU81: 5025 | AV81: 4782 | AW81: 25911 | AX81: 3050
A82: 1 | B82: 130201 | C82: ASCOPE (1) | G82: 6984 | H82: =+H83 -> 89 | I82: =+I83 -> 94 | J82: 89 | K82: 116 | L82: 91 | M82: 118 | N82: 106 | O82: 97 | P82: 104 | Q82: 122 | R82: 105 | S82: 115 | T82: 111 | U82: 112 | V82: 97 | W82: 109 | X82: 105 | Y82: 90 | Z82: 109 | AA82: 108 | AB82: 428 | AC82: 479 | AD82: 465 | AE82: 472 | AF82: 476 | AG82: 461 | AH82: 394 | AI82: 428 | AJ82: 376 | AK82: 312 | AL82: 247 | AM82: 161 | AN82: 92 | AO82: 106 | AP82: 5 | AQ82: 40 | AR82: 49 | AS82: 131 | AT82: 3513 | AU82: 272 | AV82: 259 | AW82: 1387 | AX82: 174
B83: 130201 | C83: ASCOPÉ | D83: 00005263 | E83: Hospital | F83: ASCOPE "ROSA SANCHEZ DE SANTILLAN" | G83: 6984 | H83: 89 | I83: 94 | J83: 89 | K83: 116 | L83: 91 | M83: 118 | N83: 106 | O83: 97 | P83: 104 | Q83: 122 | R83: 105 | S83: 115 | T83: 111 | U83: 112 | V83: 97 | W83: 109 | X83: 105 | Y83: 90 | Z83: 109 | AA83: 108 | AB83: 428 | AC83: 479 | AD83: 465 | AE83: 472 | AF83: 476 | AG83: 461 | AH83: 394 | AI83: 428 | AJ83: 376 | AK83: 312 | AL83: 247 | AM83: 161 | AN83: 92 | AO83: 106 | AP83: 5 | AQ83: 40 | AR83: 49 | AS83: 131 | AT83: 3513 | AU83: 272 | AV83: 259 | AW83: 1387 | AX83: 174
A84: 2 | B84: 130202 | C84: CHICAMA (2) | G84: 16089 | H84: =+SUM(H85:H86) -> 208 | I84: =+SUM(I85:I86) -> 230 | J84: 249 | K84: 276 | L84: 213 | M84: 254 | N84: 249 | O84: 257 | P84: 273 | Q84: 269 | R84: 244 | S84: 231 | T84: 266 | U84: 227 | V84: 258 | W84: 267 | X84: 264 | Y84: 250 | Z84: 240 | AA84: 236 | AB84: 1236 | AC84: 1271 | AD84: 1114 | AE84: 1075 | AF84: 1018 | AG84: 945 | AH84: 964 | AI84: 940 | AJ84: 807 | AK84: 604 | AL84: 399 | AM84: 317 | AN84: 229 | AO84: 209 | AP84: 10 | AQ84: 80 | AR84: 128 | AS84: 281 | AT84: 8090 | AU84: 604 | AV84: 644 | AW84: 3332 | AX84: 404
B85: 130202 | C85: CHICAMA | D85: 00005264 | E85: Centro de salud - camas de internamiento | F85: MATERNO CHICAMA | G85: 10162 | H85: 131 | I85: 145 | J85: 157 | K85: 174 | L85: 135 | M85: 160 | N85: 157 | O85: 162 | P85: 172 | Q85: 170 | R85: 154 | S85: 146 | T85: 168 | U85: 143 | V85: 163 | W85: 169 | X85: 167 | Y85: 158 | Z85: 152 | AA85: 149 | AB85: 781 | AC85: 803 | AD85: 704 | AE85: 679 | AF85: 643 | AG85: 597 | AH85: 609 | AI85: 594 | AJ85: 510 | AK85: 381 | AL85: 252 | AM85: 200 | AN85: 145 | AO85: 132 | AP85: 6 | AQ85: 51 | AR85: 81 | AS85: 177 | AT85: 5109 | AU85: 381 | AV85: 407 | AW85: 2104 | AX85: 255
B86: 130202 | C86: CHICAMA | D86: 00005265 | E86: Centro de salud | F86: ALTO PERU | G86: 5927 | H86: 77 | I86: 85 | J86: 92 | K86: 102 | L86: 78 | M86: 94 | N86: 92 | O86: 95 | P86: 101 | Q86: 99 | R86: 90 | S86: 85 | T86: 98 | U86: 84 | V86: 95 | W86: 98 | X86: 97 | Y86: 92 | Z86: 88 | AA86: 87 | AB86: 455 | AC86: 468 | AD86: 410 | AE86: 396 | AF86: 375 | AG86: 348 | AH86: 355 | AI86: 346 | AJ86: 297 | AK86: 223 | AL86: 147 | AM86: 117 | AN86: 84 | AO86: 77 | AP86: 4 | AQ86: 29 | AR86: 47 | AS86: 104 | AT86: 2981 | AU86: 223 | AV86: 237 | AW86: 1228 | AX86: 149
A87: 2 | B87: 130203 | C87: CHOCOPE (3) | G87: 9673 | H87: =+SUM(H88:H89) -> 107 | I87: =+SUM(I88:I89) -> 114 | J87: 110 | K87: 109 | L87: 160 | M87: 132 | N87: 151 | O87: 162 | P87: 159 | Q87: 166 | R87: 153 | S87: 138 | T87: 132 | U87: 151 | V87: 152 | W87: 142 | X87: 136 | Y87: 133 | Z87: 138 | AA87: 132 | AB87: 614 | AC87: 699 | AD87: 631 | AE87: 652 | AF87: 660 | AG87: 645 | AH87: 646 | AI87: 629 | AJ87: 525 | AK87: 406 | AL87: 298 | AM87: 216 | AN87: 136 | AO87: 139 | AP87: 5 | AQ87: 56 | AR87: 51 | AS87: 150 | AT87: 4859 | AU87: 359 | AV87: 321 | AW87: 1987 | AX87: 167
B88: 130203 | C88: CHOCOPE | D88: 00005266 | E88: Centro de salud | F88: CHOCOPE | G88: 8100 | H88: 90 | I88: 95 | J88: 92 | K88: 91 | L88: 134 | M88: 111 | N88: 126 | O88: 136 | P88: 133 | Q88: 139 | R88: 128 | S88: 116 | T88: 111 | U88: 126 | V88: 127 | W88: 119 | X88: 114 | Y88: 111 | Z88: 116 | AA88: 111 | AB88: 514 | AC88: 585 | AD88: 528 | AE88: 546 | AF88: 553 | AG88: 540 | AH88: 541 | AI88: 527 | AJ88: 440 | AK88: 340 | AL88: 249 | AM88: 181 | AN88: 114 | AO88: 116 | AP88: 4 | AQ88: 47 | AR88: 43 | AS88: 126 | AT88: 4068 | AU88: 301 | AV88: 269 | AW88: 1664 | AX88: 140
B89: 130203 | C89: CHOCOPE | D89: 00005267 | E89: Puesto de salud | F89: MOLINOS DE CAJANLEQUE | G89: 1573 | H89: 17 | I89: 19 | J89: 18 | K89: 18 | L89: 26 | M89: 21 | N89: 25 | O89: 26 | P89: 26 | Q89: 27 | R89: 25 | S89: 22 | T89: 21 | U89: 25 | V89: 25 | W89: 23 | X89: 22 | Y89: 22 | Z89: 22 | AA89: 21 | AB89: 100 | AC89: 114 | AD89: 103 | AE89: 106 | AF89: 107 | AG89: 105 | AH89: 105 | AI89: 102 | AJ89: 85 | AK89: 66 | AL89: 49 | AM89: 35 | AN89: 22 | AO89: 23 | AP89: 1 | AQ89: 9 | AR89: 8 | AS89: 24 | AT89: 791 | AU89: 58 | AV89: 52 | AW89: 323 | AX89: 27
A90: 1 | B90: 130204 | C90: MAGDALENA DE CAO (4) | G90: 2612 | H90: =+H91 -> 29 | I90: =+I91 -> 20 | J90: 32 | K90: 23 | L90: 37 | M90: 29 | N90: 32 | O90: 51 | P90: 42 | Q90: 36 | R90: 44 | S90: 47 | T90: 46 | U90: 35 | V90: 37 | W90: 31 | X90: 36 | Y90: 44 | Z90: 42 | AA90: 41 | AB90: 168 | AC90: 195 | AD90: 180 | AE90: 186 | AF90: 181 | AG90: 157 | AH90: 157 | AI90: 155 | AJ90: 153 | AK90: 124 | AL90: 92 | AM90: 53 | AN90: 45 | AO90: 32 | AP90: 1 | AQ90: 5 | AR90: 24 | AS90: 64 | AT90: 1312 | AU90: 104 | AV90: 93 | AW90: 546 | AX90: 57
B91: 130204 | C91: MAGDALENA DE CAO | D91: 00005268 | E91: Centro de salud | F91: MAGDALENA DE CAO | G91: 2612 | H91: 29 | I91: 20 | J91: 32 | K91: 23 | L91: 37 | M91: 29 | N91: 32 | O91: 51 | P91: 42 | Q91: 36 | R91: 44 | S91: 47 | T91: 46 | U91: 35 | V91: 37 | W91: 31 | X91: 36 | Y91: 44 | Z91: 42 | AA91: 41 | AB91: 168 | AC91: 195 | AD91: 180 | AE91: 186 | AF91: 181 | AG91: 157 | AH91: 157 | AI91: 155 | AJ91: 153 | AK91: 124 | AL91: 92 | AM91: 53 | AN91: 45 | AO91: 32 | AP91: 1 | AQ91: 5 | AR91: 24 | AS91: 64 | AT91: 1312 | AU91: 104 | AV91: 93 | AW91: 546 | AX91: 57
A92: 2 | B92: 130205 | C92: PAIJAN (5) | G92: 29961 | H92: =+SUM(H93:H94) -> 418 | I92: =+SUM(I93:I94) -> 456 | J92: 480 | K92: 498 | L92: 472 | M92: 500 | N92: 525 | O92: 527 | P92: 539 | Q92: 490 | R92: 567 | S92: 550 | T92: 561 | U92: 636 | V92: 536 | W92: 541 | X92: 576 | Y92: 562 | Z92: 453 | AA92: 482 | AB92: 2314 | AC92: 2384 | AD92: 2136 | AE92: 2165 | AF92: 1964 | AG92: 1796 | AH92: 1420 | AI92: 1363 | AJ92: 1186 | AK92: 910 | AL92: 723 | AM92: 513 | AN92: 365 | AO92: 353 | AP92: 14 | AQ92: 197 | AR92: 221 | AS92: 569 | AT92: 15099 | AU92: 1408 | AV92: 1319 | AW92: 6434 | AX92: 791
B93: 130205 | C93: PAIJAN | D93: 00005269 | E93: Centro de salud - camas de internamiento | F93: PAIJAN | G93: 27827 | H93: 388 | I93: 424 | J93: 446 | K93: 463 | L93: 438 | M93: 464 | N93: 488 | O93: 489 | P93: 501 | Q93: 455 | R93: 527 | S93: 511 | T93: 521 | U93: 591 | V93: 498 | W93: 502 | X93: 535 | Y93: 522 | Z93: 421 | AA93: 448 | AB93: 2149 | AC93: 2214 | AD93: 1984 | AE93: 2011 | AF93: 1824 | AG93: 1668 | AH93: 1319 | AI93: 1266 | AJ93: 1101 | AK93: 845 | AL93: 671 | AM93: 476 | AN93: 339 | AO93: 328 | AP93: 13 | AQ93: 183 | AR93: 205 | AS93: 528 | AT93: 14023 | AU93: 1308 | AV93: 1225 | AW93: 5975 | AX93: 735
B94: 130205 | C94: PAIJAN | D94: 00005270 | E94: Puesto de salud | F94: MACABI BAJO | G94: 2134 | H94: 30 | I94: 32 | J94: 34 | K94: 35 | L94: 34 | M94: 36 | N94: 37 | O94: 38 | P94: 38 | Q94: 35 | R94: 40 | S94: 39 | T94: 40 | U94: 45 | V94: 38 | W94: 39 | X94: 41 | Y94: 40 | Z94: 32 | AA94: 34 | AB94: 165 | AC94: 170 | AD94: 152 | AE94: 154 | AF94: 140 | AG94: 128 | AH94: 101 | AI94: 97 | AJ94: 85 | AK94: 65 | AL94: 52 | AM94: 37 | AN94: 26 | AO94: 25 | AP94: 1 | AQ94: 14 | AR94: 16 | AS94: 41 | AT94: 1076 | AU94: 100 | AV94: 94 | AW94: 459 | AX94: 56
A95: 1 | B95: 130206 | C95: RAZURI (6) | G95: 9477 | H95: =+H96 -> 112 | I95: =+I96 -> 131 | J95: 127 | K95: 139 | L95: 130 | M95: 156 | N95: 173 | O95: 153 | P95: 183 | Q95: 174 | R95: 151 | S95: 176 | T95: 203 | U95: 181 | V95: 156 | W95: 160 | X95: 197 | Y95: 151 | Z95: 146 | AA95: 133 | AB95: 739 | AC95: 778 | AD95: 665 | AE95: 657 | AF95: 690 | AG95: 588 | AH95: 526 | AI95: 450 | AJ95: 316 | AK95: 286 | AL95: 240 | AM95: 187 | AN95: 120 | AO95: 103 | AP95: 4 | AQ95: 62 | AR95: 50 | AS95: 140 | AT95: 4754 | AU95: 433 | AV95: 358 | AW95: 2094 | AX95: 178
B96: 130206 | C96: RAZURI | D96: 00005271 | E96: Centro de salud - camas de internamiento | F96: RAZURI | G96: 9477 | H96: 112 | I96: 131 | J96: 127 | K96: 139 | L96: 130 | M96: 156 | N96: 173 | O96: 153 | P96: 183 | Q96: 174 | R96: 151 | S96: 176 | T96: 203 | U96: 181 | V96: 156 | W96: 160 | X96: 197 | Y96: 151 | Z96: 146 | AA96: 133 | AB96: 739 | AC96: 778 | AD96: 665 | AE96: 657 | AF96: 690 | AG96: 588 | AH96: 526 | AI96: 450 | AJ96: 316 | AK96: 286 | AL96: 240 | AM96: 187 | AN96: 120 | AO96: 103 | AP96: 4 | AQ96: 62 | AR96: 50 | AS96: 140 | AT96: 4754 | AU96: 433 | AV96: 358 | AW96: 2094 | AX96: 178
A97: 2 | B97: 130207 | C97: SANTIAGO DE CAO (7) | G97: 19910 | H97: =+SUM(H98:H99) -> 164 | I97: =+SUM(I98:I99) -> 193 | J97: 218 | K97: 192 | L97: 267 | M97: 282 | N97: 268 | O97: 302 | P97: 316 | Q97: 308 | R97: 304 | S97: 287 | T97: 303 | U97: 307 | V97: 273 | W97: 289 | X97: 283 | Y97: 273 | Z97: 283 | AA97: 270 | AB97: 1431 | AC97: 1527 | AD97: 1353 | AE97: 1311 | AF97: 1288 | AG97: 1229 | AH97: 1289 | AI97: 1304 | AJ97: 1189 | AK97: 925 | AL97: 582 | AM97: 439 | AN97: 314 | AO97: 347 | AP97: 7 | AQ97: 84 | AR97: 80 | AS97: 273 | AT97: 10024 | AU97: 730 | AV97: 703 | AW97: 4104 | AX97: 482
B98: 130207 | C98: SANTIAGO DE CAO | D98: 00005272 | E98: Centro de salud | F98: SANTIAGO DE CAO | G98: 16658 | H98: 137 | I98: 161 | J98: 182 | K98: 161 | L98: 223 | M98: 236 | N98: 224 | O98: 253 | P98: 264 | Q98: 258 | R98: 254 | S98: 240 | T98: 254 | U98: 257 | V98: 228 | W98: 242 | X98: 237 | Y98: 228 | Z98: 237 | AA98: 226 | AB98: 1197 | AC98: 1278 | AD98: 1132 | AE98: 1097 | AF98: 1078 | AG98: 1028 | AH98: 1079 | AI98: 1091 | AJ98: 995 | AK98: 774 | AL98: 487 | AM98: 367 | AN98: 263 | AO98: 290 | AP98: 6 | AQ98: 70 | AR98: 67 | AS98: 228 | AT98: 8387 | AU98: 611 | AV98: 588 | AW98: 3434 | AX98: 403
B99: 130207 | C99: SANTIAGO DE CAO | D99: 00031252 | E99: Puesto de salud | F99: SANTA ROSA DE CARTAVIO | G99: 3252 | H99: 27 | I99: 32 | J99: 36 | K99: 31 | L99: 44 | M99: 46 | N99: 44 | O99: 49 | P99: 52 | Q99: 50 | R99: 50 | S99: 47 | T99: 49 | U99: 50 | V99: 45 | W99: 47 | X99: 46 | Y99: 45 | Z99: 46 | AA99: 44 | AB99: 234 | AC99: 249 | AD99: 221 | AE99: 214 | AF99: 210 | AG99: 201 | AH99: 210 | AI99: 213 | AJ99: 194 | AK99: 151 | AL99: 95 | AM99: 72 | AN99: 51 | AO99: 57 | AP99: 1 | AQ99: 14 | AR99: 13 | AS99: 45 | AT99: 1637 | AU99: 119 | AV99: 115 | AW99: 670 | AX99: 79
A100: 3 | B100: 130208 | C100: CASA GRANDE (8) | G100: 29784 | H100: =+SUM(H101:H103) -> 348 | I100: =+SUM(I101:I103) -> 399 | J100: 381 | K100: 324 | L100: 371 | M100: 369 | N100: 469 | O100: 461 | P100: 470 | Q100: 441 | R100: 447 | S100: 451 | T100: 459 | U100: 486 | V100: 441 | W100: 476 | X100: 427 | Y100: 473 | Z100: 418 | AA100: 421 | AB100: 2145 | AC100: 2238 | AD100: 1947 | AE100: 1973 | AF100: 1867 | AG100: 1877 | AH100: 1862 | AI100: 1961 | AJ100: 1629 | AK100: 1190 | AL100: 885 | AM100: 677 | AN100: 550 | AO100: 451 | AP100: 20 | AQ100: 172 | AR100: 177 | AS100: 443 | AT100: 15004 | AU100: 1115 | AV100: 1085 | AW100: 6027 | AX100: 797
B101: 130208 | C101: CASA GRANDE | D101: 00007631 | E101: Centro de salud | F101: CASA GRANDE | G101: 19959 | H101: 233 | I101: 267 | J101: 255 | K101: 217 | L101: 249 | M101: 247 | N101: 315 | O101: 309 | P101: 314 | Q101: 295 | R101: 300 | S101: 302 | T101: 308 | U101: 325 | V101: 295 | W101: 319 | X101: 286 | Y101: 317 | Z101: 280 | AA101: 282 | AB101: 1437 | AC101: 1500 | AD101: 1305 | AE101: 1322 | AF101: 1251 | AG101: 1258 | AH101: 1248 | AI101: 1315 | AJ101: 1092 | AK101: 798 | AL101: 593 | AM101: 454 | AN101: 369 | AO101: 302 | AP101: 13 | AQ101: 115 | AR101: 119 | AS101: 297 | AT101: 10056 | AU101: 747 | AV101: 727 | AW101: 4040 | AX101: 534
B102: 130208 | C102: CASA GRANDE | D102: 00005275 | E102: Centro de salud | F102: ROMA "3 DE OCTUBRE" | G102: 5873 | H102: 69 | I102: 79 | J102: 75 | K102: 64 | L102: 73 | M102: 73 | N102: 92 | O102: 91 | P102: 94 | Q102: 88 | R102: 88 | S102: 89 | T102: 90 | U102: 96 | V102: 87 | W102: 94 | X102: 84 | Y102: 93 | Z102: 83 | AA102: 83 | AB102: 423 | AC102: 441 | AD102: 384 | AE102: 389 | AF102: 368 | AG102: 370 | AH102: 367 | AI102: 386 | AJ102: 321 | AK102: 234 | AL102: 175 | AM102: 133 | AN102: 108 | AO102: 89 | AP102: 4 | AQ102: 34 | AR102: 35 | AS102: 87 | AT102: 2956 | AU102: 220 | AV102: 214 | AW102: 1187 | AX102: 157
B103: 130208 | C103: CASA GRANDE | D103: 00005274 | E103: Puesto de salud | F103: MOCAN | G103: 3952 | H103: 46 | I103: 53 | J103: 51 | K103: 43 | L103: 49 | M103: 49 | N103: 62 | O103: 61 | P103: 62 | Q103: 58 | R103: 59 | S103: 60 | T103: 61 | U103: 65 | V103: 59 | W103: 63 | X103: 57 | Y103: 63 | Z103: 55 | AA103: 56 | AB103: 285 | AC103: 297 | AD103: 258 | AE103: 262 | AF103: 248 | AG103: 249 | AH103: 247 | AI103: 260 | AJ103: 216 | AK103: 158 | AL103: 117 | AM103: 90 | AN103: 73 | AO103: 60 | AP103: 3 | AQ103: 23 | AR103: 23 | AS103: 59 | AT103: 1992 | AU103: 148 | AV103: 144 | AW103: 800 | AX103: 106
A104: =+SUM(A105:A118) -> 8 | B104: 130300 | C104: BOLIVAR (3) | G104: 16087 | H104: =+H105+H107+H110+H112+H115+H117 -> 370 | I104: 362 | J104: 391 | K104: 366 | L104: 391 | M104: 406 | N104: 272 | O104: 295 | P104: 276 | Q104: 319 | R104: 312 | S104: 350 | T104: 355 | U104: 349 | V104: 330 | W104: 347 | X104: 362 | Y104: 424 | Z104: 364 | AA104: 299 | AB104: 1355 | AC104: 1144 | AD104: 880 | AE104: 913 | AF104: 796 | AG104: 758 | AH104: 752 | AI104: 674 | AJ104: 560 | AK104: 395 | AL104: 332 | AM104: 263 | AN104: 173 | AO104: 152 | AP104: 14 | AQ104: 156 | AR104: 213 | AS104: 509 | AT104: 8024 | AU104: 872 | AV104: 918 | AW104: 2890 | AX104: 669
A105: 1 | B105: 130301 | C105: BOLIVAR (1) | G105: 4956 | H105: =+H106 -> 96 | I105: =+I106 -> 98 | J105: 124 | K105: 101 | L105: 113 | M105: 132 | N105: 88 | O105: 79 | P105: 75 | Q105: 102 | R105: 109 | S105: 119 | T105: 119 | U105: 124 | V105: 110 | W105: 109 | X105: 110 | Y105: 136 | Z105: 113 | AA105: 105 | AB105: 454 | AC105: 349 | AD105: 252 | AE105: 277 | AF105: 233 | AG105: 205 | AH105: 236 | AI105: 207 | AJ105: 174 | AK105: 108 | AL105: 113 | AM105: 76 | AN105: 53 | AO105: 57 | AP105: 2 | AQ105: 36 | AR105: 60 | AS105: 134 | AT105: 2478 | AU105: 300 | AV105: 295 | AW105: 856 | AX105: 156
B106: 130301 | C106: BOLIVAR | D106: 00005366 | E106: Hospital | F106: BOLIVAR | G106: 4956 | H106: 96 | I106: 98 | J106: 124 | K106: 101 | L106: 113 | M106: 132 | N106: 88 | O106: 79 | P106: 75 | Q106: 102 | R106: 109 | S106: 119 | T106: 119 | U106: 124 | V106: 110 | W106: 109 | X106: 110 | Y106: 136 | Z106: 113 | AA106: 105 | AB106: 454 | AC106: 349 | AD106: 252 | AE106: 277 | AF106: 233 | AG106: 205 | AH106: 236 | AI106: 207 | AJ106: 174 | AK106: 108 | AL106: 113 | AM106: 76 | AN106: 53 | AO106: 57 | AP106: 2 | AQ106: 36 | AR106: 60 | AS106: 134 | AT106: 2478 | AU106: 300 | AV106: 295 | AW106: 856 | AX106: 156
A107: 2 | B107: 130302 | C107: BAMBAMARCA (2) | G107: 3621 | H107: =+SUM(H108:H109) -> 101 | I107: =+SUM(I108:I109) -> 106 | J107: 110 | K107: 117 | L107: 111 | M107: 105 | N107: 71 | O107: 77 | P107: 78 | Q107: 79 | R107: 71 | S107: 63 | T107: 77 | U107: 83 | V107: 75 | W107: 85 | X107: 89 | Y107: 93 | Z107: 81 | AA107: 64 | AB107: 347 | AC107: 295 | AD107: 192 | AE107: 189 | AF107: 152 | AG107: 152 | AH107: 138 | AI107: 118 | AJ107: 89 | AK107: 69 | AL107: 53 | AM107: 37 | AN107: 29 | AO107: 25 | AP107: 2 | AQ107: 50 | AR107: 50 | AS107: 141 | AT107: 1790 | AU107: 193 | AV107: 205 | AW107: 654 | AX107: 198
B108: 130302 | C108: BAMBAMARCA | D108: 00005368 | E108: Centro de salud | F108: CALEMAR | G108: 1139 | H108: 32 | I108: 33 | J108: 35 | K108: 37 | L108: 35 | M108: 33 | N108: 22 | O108: 25 | P108: 24 | Q108: 25 | R108: 22 | S108: 20 | T108: 24 | U108: 26 | V108: 24 | W108: 26 | X108: 28 | Y108: 29 | Z108: 25 | AA108: 20 | AB108: 109 | AC108: 93 | AD108: 60 | AE108: 59 | AF108: 48 | AG108: 48 | AH108: 43 | AI108: 37 | AJ108: 28 | AK108: 22 | AL108: 17 | AM108: 12 | AN108: 10 | AO108: 8 | AP108: 1 | AQ108: 16 | AR108: 16 | AS108: 45 | AT108: 562 | AU108: 61 | AV108: 64 | AW108: 205 | AX108: 62
B109: 130302 | C109: BAMBAMARCA | D109: 00005367 | E109: Puesto de salud | F109: BAMBAMARCA | G109: 2482 | H109: 69 | I109: 73 | J109: 75 | K109: 80 | L109: 76 | M109: 72 | N109: 49 | O109: 52 | P109: 54 | Q109: 54 | R109: 49 | S109: 43 | T109: 53 | U109: 57 | V109: 51 | W109: 59 | X109: 61 | Y109: 64 | Z109: 56 | AA109: 44 | AB109: 238 | AC109: 202 | AD109: 132 | AE109: 130 | AF109: 104 | AG109: 104 | AH109: 95 | AI109: 81 | AJ109: 61 | AK109: 47 | AL109: 36 | AM109: 25 | AN109: 19 | AO109: 17 | AP109: 1 | AQ109: 34 | AR109: 34 | AS109: 96 | AT109: 1228 | AU109: 132 | AV109: 141 | AW109: 449 | AX109: 136
A110: 1 | B110: 130303 | C110: CONDORMARCA (3) | G110: 2066 | H110: =+H111 -> 52 | I110: =+I111 -> 41 | J110: 45 | K110: 45 | L110: 39 | M110: 69 | N110: 35 | O110: 38 | P110: 36 | Q110: 39 | R110: 34 | S110: 63 | T110: 41 | U110: 36 | V110: 35 | W110: 48 | X110: 50 | Y110: 47 | Z110: 42 | AA110: 43 | AB110: 168 | AC110: 143 | AD110: 130 | AE110: 103 | AF110: 106 | AG110: 100 | AH110: 79 | AI110: 94 | AJ110: 78 | AK110: 51 | AL110: 37 | AM110: 42 | AN110: 31 | AO110: 26 | AP110: 3 | AQ110: 19 | AR110: 33 | AS110: 61 | AT110: 1036 | AU110: 104 | AV110: 129 | AW110: 358 | AX110: 105
B111: 130303 | C111: CONDORMARCA | D111: 00005369 | E111: Puesto de salud | F111: CONDORMARCA | G111: 2066 | H111: 52 | I111: 41 | J111: 45 | K111: 45 | L111: 39 | M111: 69 | N111: 35 | O111: 38 | P111: 36 | Q111: 39 | R111: 34 | S111: 63 | T111: 41 | U111: 36 | V111: 35 | W111: 48 | X111: 50 | Y111: 47 | Z111: 42 | AA111: 43 | AB111: 168 | AC111: 143 | AD111: 130 | AE111: 103 | AF111: 106 | AG111: 100 | AH111: 79 | AI111: 94 | AJ111: 78 | AK111: 51 | AL111: 37 | AM111: 42 | AN111: 31 | AO111: 26 | AP111: 3 | AQ111: 19 | AR111: 33 | AS111: 61 | AT111: 1036 | AU111: 104 | AV111: 129 | AW111: 358 | AX111: 105
A112: 2 | B112: 130304 | C112: LONGOTEA (4) | G112: 2270 | H112: =+SUM(H113:H114) -> 54 | I112: =+SUM(I113:I114) -> 48 | J112: 57 | K112: 49 | L112: 64 | M112: 53 | N112: 28 | O112: 44 | P112: 34 | Q112: 41 | R112: 38 | S112: 44 | T112: 48 | U112: 44 | V112: 38 | W112: 35 | X112: 42 | Y112: 52 | Z112: 40 | AA112: 34 | AB112: 149 | AC112: 146 | AD112: 123 | AE112: 139 | AF112: 131 | AG112: 132 | AH112: 128 | AI112: 104 | AJ112: 102 | AK112: 75 | AL112: 56 | AM112: 50 | AN112: 25 | AO112: 23 | AP112: 3 | AQ112: 19 | AR112: 35 | AS112: 88 | AT112: 1124 | AU112: 106 | AV112: 95 | AW112: 428 | AX112: 73
B113: 130304 | C113: LONGOTEA | D113: 00005371 | E113: Puesto de salud | F113: LONGOTEA | G113: 353 | H113: 8 | I113: 7 | J113: 9 | K113: 8 | L113: 10 | M113: 8 | N113: 4 | O113: 7 | P113: 5 | Q113: 6 | R113: 6 | S113: 7 | T113: 7 | U113: 7 | V113: 6 | W113: 5 | X113: 7 | Y113: 8 | Z113: 6 | AA113: 5 | AB113: 23 | AC113: 23 | AD113: 19 | AE113: 22 | AF113: 20 | AG113: 21 | AH113: 20 | AI113: 16 | AJ113: 16 | AK113: 12 | AL113: 9 | AM113: 8 | AN113: 4 | AO113: 4 | AP113: 0 | AQ113: 3 | AR113: 5 | AS113: 14 | AT113: 175 | AU113: 16 | AV113: 15 | AW113: 67 | AX113: 11
B114: 130304 | C114: LONGOTEA | D114: 00005372 | E114: Centro de salud | F114: PUSAC | G114: 1917 | H114: 46 | I114: 41 | J114: 48 | K114: 41 | L114: 54 | M114: 45 | N114: 24 | O114: 37 | P114: 29 | Q114: 35 | R114: 32 | S114: 37 | T114: 41 | U114: 37 | V114: 32 | W114: 30 | X114: 35 | Y114: 44 | Z114: 34 | AA114: 29 | AB114: 126 | AC114: 123 | AD114: 104 | AE114: 117 | AF114: 111 | AG114: 111 | AH114: 108 | AI114: 88 | AJ114: 86 | AK114: 63 | AL114: 47 | AM114: 42 | AN114: 21 | AO114: 19 | AP114: 3 | AQ114: 16 | AR114: 30 | AS114: 74 | AT114: 949 | AU114: 90 | AV114: 80 | AW114: 361 | AX114: 62
A115: 1 | B115: 130305 | C115: UCHUMARCA (5) | G115: 2251 | H115: =+H116 -> 45 | I115: =+I116 -> 47 | J115: 33 | K115: 28 | L115: 39 | M115: 25 | N115: 34 | O115: 41 | P115: 36 | Q115: 39 | R115: 52 | S115: 42 | T115: 49 | U115: 50 | V115: 52 | W115: 48 | X115: 53 | Y115: 71 | Z115: 68 | AA115: 38 | AB115: 165 | AC115: 162 | AD115: 123 | AE115: 139 | AF115: 125 | AG115: 121 | AH115: 129 | AI115: 108 | AJ115: 83 | AK115: 64 | AL115: 53 | AM115: 45 | AN115: 27 | AO115: 17 | AP115: 3 | AQ115: 25 | AR115: 20 | AS115: 58 | AT115: 1135 | AU115: 128 | AV115: 142 | AW115: 427 | AX115: 93
B116: 130305 | C116: UCHUMARCA | D116: 00005373 | E116: Puesto de salud | F116: UCHUMARCA | G116: 2251 | H116: 45 | I116: 47 | J116: 33 | K116: 28 | L116: 39 | M116: 25 | N116: 34 | O116: 41 | P116: 36 | Q116: 39 | R116: 52 | S116: 42 | T116: 49 | U116: 50 | V116: 52 | W116: 48 | X116: 53 | Y116: 71 | Z116: 68 | AA116: 38 | AB116: 165 | AC116: 162 | AD116: 123 | AE116: 139 | AF116: 125 | AG116: 121 | AH116: 129 | AI116: 108 | AJ116: 83 | AK116: 64 | AL116: 53 | AM116: 45 | AN116: 27 | AO116: 17 | AP116: 3 | AQ116: 25 | AR116: 20 | AS116: 58 | AT116: 1135 | AU116: 128 | AV116: 142 | AW116: 427 | AX116: 93
A117: 1 | B117: 130306 | C117: UCUNCHA (6) | G117: 923 | H117: =+H118 -> 22 | I117: =+I118 -> 22 | J117: 22 | K117: 26 | L117: 25 | M117: 22 | N117: 16 | O117: 16 | P117: 17 | Q117: 19 | R117: 8 | S117: 19 | T117: 21 | U117: 12 | V117: 20 | W117: 22 | X117: 18 | Y117: 25 | Z117: 20 | AA117: 15 | AB117: 72 | AC117: 49 | AD117: 60 | AE117: 66 | AF117: 49 | AG117: 48 | AH117: 42 | AI117: 43 | AJ117: 34 | AK117: 28 | AL117: 20 | AM117: 13 | AN117: 8 | AO117: 4 | AP117: 1 | AQ117: 7 | AR117: 15 | AS117: 27 | AT117: 461 | AU117: 41 | AV117: 52 | AW117: 167 | AX117: 44
B118: 130306 | C118: UCUNCHA | D118: 00005374 | E118: Puesto de salud | F118: UCUNCHA | G118: 923 | H118: 22 | I118: 22 | J118: 22 | K118: 26 | L118: 25 | M118: 22 | N118: 16 | O118: 16 | P118: 17 | Q118: 19 | R118: 8 | S118: 19 | T118: 21 | U118: 12 | V118: 20 | W118: 22 | X118: 18 | Y118: 25 | Z118: 20 | AA118: 15 | AB118: 72 | AC118: 49 | AD118: 60 | AE118: 66 | AF118: 49 | AG118: 48 | AH118: 42 | AI118: 43 | AJ118: 34 | AK118: 28 | AL118: 20 | AM118: 13 | AN118: 8 | AO118: 4 | AP118: 1 | AQ118: 7 | AR118: 15 | AS118: 27 | AT118: 461 | AU118: 41 | AV118: 52 | AW118: 167 | AX118: 44
A119: =+SUM(A120:A129) -> 7 | B119: 130400 | C119: CHEPÉN (4) | G119: 88018 | H119: =+H120+H123+H126 -> 1254 | I119: 1322 | J119: 1423 | K119: 1411 | L119: 1469 | M119: 1568 | N119: 1352 | O119: 1367 | P119: 1373 | Q119: 1447 | R119: 1456 | S119: 1465 | T119: 1468 | U119: 1450 | V119: 1448 | W119: 1526 | X119: 1497 | Y119: 1603 | Z119: 1384 | AA119: 1290 | AB119: 6653 | AC119: 7225 | AD119: 6327 | AE119: 6043 | AF119: 5797 | AG119: 5638 | AH119: 4922 | AI119: 4359 | AJ119: 3649 | AK119: 2843 | AL119: 2111 | AM119: 1640 | AN119: 1127 | AO119: 1111 | AP119: 68 | AQ119: 583 | AR119: 671 | AS119: 1652 | AT119: 44327 | AU119: 3600 | AV119: 3617 | AW119: 19043 | AX119: 2149
A120: 2 | B120: 130401 | C120: CHEPÉN (1) | G120: 49482 | H120: =+SUM(H121:H122) -> 695 | I120: =+SUM(I121:I122) -> 763 | J120: 792 | K120: 888 | L120: 870 | M120: 948 | N120: 716 | O120: 753 | P120: 771 | Q120: 764 | R120: 765 | S120: 795 | T120: 769 | U120: 779 | V120: 772 | W120: 804 | X120: 817 | Y120: 862 | Z120: 728 | AA120: 688 | AB120: 3626 | AC120: 3932 | AD120: 3472 | AE120: 3337 | AF120: 3177 | AG120: 3201 | AH120: 2847 | AI120: 2584 | AJ120: 2210 | AK120: 1708 | AL120: 1258 | AM120: 983 | AN120: 691 | AO120: 717 | AP120: 35 | AQ120: 321 | AR120: 374 | AS120: 867 | AT120: 24931 | AU120: 1899 | AV120: 1944 | AW120: 10354 | AX120: 1186
B121: 130401 | C121: CHEPEN | D121: 00005299 | E121: Hospital DE APOYO | F121: CHEPEN | G121: 41487 | H121: 583 | I121: 640 | J121: 664 | K121: 745 | L121: 729 | M121: 795 | N121: 600 | O121: 631 | P121: 646 | Q121: 641 | R121: 641 | S121: 667 | T121: 645 | U121: 653 | V121: 647 | W121: 674 | X121: 685 | Y121: 723 | Z121: 610 | AA121: 577 | AB121: 3040 | AC121: 3297 | AD121: 2911 | AE121: 2798 | AF121: 2664 | AG121: 2684 | AH121: 2387 | AI121: 2166 | AJ121: 1853 | AK121: 1432 | AL121: 1055 | AM121: 824 | AN121: 579 | AO121: 601 | AP121: 29 | AQ121: 269 | AR121: 314 | AS121: 727 | AT121: 20902 | AU121: 1592 | AV121: 1630 | AW121: 8681 | AX121: 994
B122: 130401 | C122: CHEPEN | D122: 00005300 | E122: Puesto de salud | F122: CHEQUEN | G122: 7995 | H122: 112 | I122: 123 | J122: 128 | K122: 143 | L122: 141 | M122: 153 | N122: 116 | O122: 122 | P122: 125 | Q122: 123 | R122: 124 | S122: 128 | T122: 124 | U122: 126 | V122: 125 | W122: 130 | X122: 132 | Y122: 139 | Z122: 118 | AA122: 111 | AB122: 586 | AC122: 635 | AD122: 561 | AE122: 539 | AF122: 513 | AG122: 517 | AH122: 460 | AI122: 418 | AJ122: 357 | AK122: 276 | AL122: 203 | AM122: 159 | AN122: 112 | AO122: 116 | AP122: 6 | AQ122: 52 | AR122: 60 | AS122: 140 | AT122: 4029 | AU122: 307 | AV122: 314 | AW122: 1673 | AX122: 192
A123: 2 | B123: 130402 | C123: PACANGA (2) | G123: 25757 | H123: =+SUM(H124:H125) -> 382 | I123: =+SUM(I124:I125) -> 378 | J123: 440 | K123: 340 | L123: 409 | M123: 410 | N123: 457 | O123: 428 | P123: 412 | Q123: 482 | R123: 490 | S123: 473 | T123: 459 | U123: 457 | V123: 458 | W123: 478 | X123: 443 | Y123: 479 | Z123: 452 | AA123: 409 | AB123: 2085 | AC123: 2287 | AD123: 1944 | AE123: 1822 | AF123: 1690 | AG123: 1603 | AH123: 1377 | AI123: 1161 | AJ123: 897 | AK123: 703 | AL123: 507 | AM123: 398 | AN123: 282 | AO123: 265 | AP123: 25 | AQ123: 180 | AR123: 202 | AS123: 552 | AT123: 12987 | AU123: 1155 | AV123: 1124 | AW123: 5866 | AX123: 729
B124: 130402 | C124: PACANGA | D124: 00005301 | E124: Centro de salud | F124: PACANGA | G124: 5880 | H124: 87 | I124: 86 | J124: 100 | K124: 78 | L124: 93 | M124: 94 | N124: 104 | O124: 98 | P124: 94 | Q124: 110 | R124: 112 | S124: 108 | T124: 105 | U124: 104 | V124: 105 | W124: 109 | X124: 101 | Y124: 109 | Z124: 103 | AA124: 93 | AB124: 476 | AC124: 522 | AD124: 444 | AE124: 416 | AF124: 386 | AG124: 366 | AH124: 314 | AI124: 265 | AJ124: 205 | AK124: 161 | AL124: 116 | AM124: 91 | AN124: 64 | AO124: 61 | AP124: 6 | AQ124: 41 | AR124: 46 | AS124: 126 | AT124: 2966 | AU124: 264 | AV124: 257 | AW124: 1340 | AX124: 166
B125: 130402 | C125: PACANGA | D125: 00005302 | E125: Centro de salud | F125: PACANGUILLA | G125: 19877 | H125: 295 | I125: 292 | J125: 340 | K125: 262 | L125: 316 | M125: 316 | N125: 353 | O125: 330 | P125: 318 | Q125: 372 | R125: 378 | S125: 365 | T125: 354 | U125: 353 | V125: 353 | W125: 369 | X125: 342 | Y125: 370 | Z125: 349 | AA125: 316 | AB125: 1609 | AC125: 1765 | AD125: 1500 | AE125: 1406 | AF125: 1304 | AG125: 1237 | AH125: 1063 | AI125: 896 | AJ125: 692 | AK125: 542 | AL125: 391 | AM125: 307 | AN125: 218 | AO125: 204 | AP125: 19 | AQ125: 139 | AR125: 156 | AS125: 426 | AT125: 10021 | AU125: 891 | AV125: 867 | AW125: 4526 | AX125: 563
A126: 3 | B126: 130403 | C126: PUEBLO NUEVO (3) | G126: 12779 | H126: =+SUM(H127:H129) -> 177 | I126: =+SUM(I127:I129) -> 181 | J126: 191 | K126: 183 | L126: 190 | M126: 210 | N126: 179 | O126: 186 | P126: 190 | Q126: 201 | R126: 201 | S126: 197 | T126: 240 | U126: 214 | V126: 218 | W126: 244 | X126: 237 | Y126: 262 | Z126: 204 | AA126: 193 | AB126: 942 | AC126: 1006 | AD126: 911 | AE126: 884 | AF126: 930 | AG126: 834 | AH126: 698 | AI126: 614 | AJ126: 542 | AK126: 432 | AL126: 346 | AM126: 259 | AN126: 154 | AO126: 129 | AP126: 8 | AQ126: 82 | AR126: 95 | AS126: 233 | AT126: 6409 | AU126: 546 | AV126: 549 | AW126: 2823 | AX126: 234
B127: 130403 | C127: PUEBLO NUEVO | D127: 00005303 | E127: Centro de salud | F127: PUEBLO NUEVO | G127: 7755 | H127: 107 | I127: 110 | J127: 116 | K127: 111 | L127: 115 | M127: 127 | N127: 109 | O127: 113 | P127: 115 | Q127: 122 | R127: 122 | S127: 120 | T127: 146 | U127: 129 | V127: 132 | W127: 148 | X127: 144 | Y127: 159 | Z127: 124 | AA127: 118 | AB127: 572 | AC127: 611 | AD127: 552 | AE127: 536 | AF127: 565 | AG127: 506 | AH127: 424 | AI127: 373 | AJ127: 329 | AK127: 262 | AL127: 210 | AM127: 157 | AN127: 93 | AO127: 78 | AP127: 5 | AQ127: 50 | AR127: 57 | AS127: 142 | AT127: 3889 | AU127: 331 | AV127: 333 | AW127: 1713 | AX127: 142
B128: 130403 | C128: PUEBLO NUEVO | D128: 00005305 | E128: Puesto de salud | F128: SANTA ROSA | G128: 3206 | H128: 45 | I128: 45 | J128: 48 | K128: 46 | L128: 48 | M128: 53 | N128: 45 | O128: 47 | P128: 48 | Q128: 50 | R128: 50 | S128: 49 | T128: 60 | U128: 54 | V128: 55 | W128: 61 | X128: 59 | Y128: 66 | Z128: 51 | AA128: 48 | AB128: 236 | AC128: 252 | AD128: 229 | AE128: 222 | AF128: 233 | AG128: 209 | AH128: 175 | AI128: 154 | AJ128: 136 | AK128: 108 | AL128: 87 | AM128: 65 | AN128: 39 | AO128: 33 | AP128: 2 | AQ128: 20 | AR128: 24 | AS128: 58 | AT128: 1608 | AU128: 137 | AV128: 138 | AW128: 708 | AX128: 59
B129: 130403 | C129: PUEBLO NUEVO | D129: 00005304 | E129: Puesto de salud | F129: SAN IDELFONSO | G129: 1818 | H129: 25 | I129: 26 | J129: 27 | K129: 26 | L129: 27 | M129: 30 | N129: 25 | O129: 26 | P129: 27 | Q129: 29 | R129: 29 | S129: 28 | T129: 34 | U129: 31 | V129: 31 | W129: 35 | X129: 34 | Y129: 37 | Z129: 29 | AA129: 27 | AB129: 134 | AC129: 143 | AD129: 130 | AE129: 126 | AF129: 132 | AG129: 119 | AH129: 99 | AI129: 87 | AJ129: 77 | AK129: 62 | AL129: 49 | AM129: 37 | AN129: 22 | AO129: 18 | AP129: 1 | AQ129: 12 | AR129: 14 | AS129: 33 | AT129: 912 | AU129: 78 | AV129: 78 | AW129: 402 | AX129: 33
A130: =+SUM(A131:A156) -> 22 | B130: 130500 | C130: JULCÁN (5) | G130: 30721 | H130: =+H131+H139+H145+H149 -> 599 | I130: 625 | J130: 627 | K130: 552 | L130: 589 | M130: 604 | N130: 499 | O130: 563 | P130: 524 | Q130: 499 | R130: 517 | S130: 539 | T130: 627 | U130: 625 | V130: 579 | W130: 640 | X130: 709 | Y130: 625 | Z130: 599 | AA130: 522 | AB130: 2630 | AC130: 2650 | AD130: 2023 | AE130: 1959 | AF130: 1686 | AG130: 1684 | AH130: 1514 | AI130: 1268 | AJ130: 924 | AK130: 800 | AL130: 668 | AM130: 538 | AN130: 395 | AO130: 319 | AP130: 47 | AQ130: 302 | AR130: 296 | AS130: 806 | AT130: 15384 | AU130: 1475 | AV130: 1598 | AW130: 6271 | AX130: 1071
A131: 7 | B131: 130501 | C131: JULCÁN (1) | G131: 12704 | H131: =+SUM(H132:H138) -> 218 | I131: =+SUM(I132:I138) -> 215 | J131: 220 | K131: 215 | L131: 218 | M131: 207 | N131: 185 | O131: 218 | P131: 218 | Q131: 196 | R131: 185 | S131: 219 | T131: 241 | U131: 232 | V131: 208 | W131: 243 | X131: 298 | Y131: 231 | Z131: 221 | AA131: 191 | AB131: 1007 | AC131: 1109 | AD131: 871 | AE131: 825 | AF131: 740 | AG131: 752 | AH131: 723 | AI131: 555 | AJ131: 420 | AK131: 404 | AL131: 331 | AM131: 276 | AN131: 178 | AO131: 134 | AP131: 23 | AQ131: 106 | AR131: 113 | AS131: 271 | AT131: 6356 | AU131: 545 | AV131: 609 | AW131: 2645 | AX131: 417
B132: 130501 | C132: JULCAN | D132: 00005306 | E132: Hospital | F132: JULCAN | G132: 7028 | H132: 120 | I132: 120 | J132: 122 | K132: 119 | L132: 120 | M132: 115 | N132: 102 | O132: 121 | P132: 121 | Q132: 108 | R132: 102 | S132: 122 | T132: 133 | U132: 127 | V132: 116 | W132: 134 | X132: 164 | Y132: 127 | Z132: 123 | AA132: 106 | AB132: 557 | AC132: 614 | AD132: 482 | AE132: 456 | AF132: 410 | AG132: 415 | AH132: 399 | AI132: 307 | AJ132: 233 | AK132: 224 | AL132: 183 | AM132: 153 | AN132: 98 | AO132: 75 | AP132: 12 | AQ132: 59 | AR132: 63 | AS132: 149 | AT132: 3516 | AU132: 302 | AV132: 338 | AW132: 1464 | AX132: 231
B133: 130501 | C133: JULCAN | D133: 00006775 | E133: Centro de salud | F133: AYANGAY | G133: 2260 | H133: 39 | I133: 38 | J133: 39 | K133: 38 | L133: 39 | M133: 37 | N133: 33 | O133: 39 | P133: 39 | Q133: 35 | R133: 34 | S133: 39 | T133: 43 | U133: 41 | V133: 37 | W133: 43 | X133: 53 | Y133: 41 | Z133: 39 | AA133: 34 | AB133: 179 | AC133: 197 | AD133: 155 | AE133: 147 | AF133: 132 | AG133: 133 | AH133: 128 | AI133: 99 | AJ133: 74 | AK133: 72 | AL133: 59 | AM133: 49 | AN133: 32 | AO133: 24 | AP133: 4 | AQ133: 19 | AR133: 20 | AS133: 48 | AT133: 1129 | AU133: 97 | AV133: 108 | AW133: 470 | AX133: 74
B134: 130501 | C134: JULCAN | D134: 00007249 | E134: Puesto de salud | F134: SAN AGUSTIN | G134: 1055 | H134: 18 | I134: 18 | J134: 18 | K134: 19 | L134: 18 | M134: 17 | N134: 15 | O134: 17 | P134: 18 | Q134: 17 | R134: 15 | S134: 17 | T134: 20 | U134: 19 | V134: 16 | W134: 20 | X134: 25 | Y134: 20 | Z134: 18 | AA134: 16 | AB134: 84 | AC134: 91 | AD134: 73 | AE134: 69 | AF134: 61 | AG134: 65 | AH134: 60 | AI134: 47 | AJ134: 35 | AK134: 34 | AL134: 28 | AM134: 23 | AN134: 14 | AO134: 10 | AP134: 2 | AQ134: 9 | AR134: 9 | AS134: 23 | AT134: 534 | AU134: 46 | AV134: 51 | AW134: 221 | AX134: 34
B135: 130501 | C135: JULCAN | D135: 00006963 | E135: Puesto de salud | F135: CHUGURPAMPA | G135: 417 | H135: 7 | I135: 7 | J135: 7 | K135: 7 | L135: 7 | M135: 7 | N135: 6 | O135: 7 | P135: 7 | Q135: 6 | R135: 6 | S135: 7 | T135: 8 | U135: 8 | V135: 7 | W135: 8 | X135: 10 | Y135: 8 | Z135: 7 | AA135: 6 | AB135: 33 | AC135: 37 | AD135: 29 | AE135: 27 | AF135: 24 | AG135: 25 | AH135: 24 | AI135: 18 | AJ135: 14 | AK135: 13 | AL135: 11 | AM135: 9 | AN135: 6 | AO135: 4 | AP135: 1 | AQ135: 3 | AR135: 4 | AS135: 9 | AT135: 210 | AU135: 18 | AV135: 20 | AW135: 87 | AX135: 14
B136: 130501 | C136: JULCAN | D136: 00006774 | E136: Puesto de salud | F136: PARUQUE BAJO | G136: 616 | H136: 11 | I136: 10 | J136: 11 | K136: 10 | L136: 10 | M136: 9 | N136: 9 | O136: 11 | P136: 10 | Q136: 10 | R136: 9 | S136: 11 | T136: 12 | U136: 12 | V136: 10 | W136: 12 | X136: 15 | Y136: 11 | Z136: 11 | AA136: 9 | AB136: 49 | AC136: 54 | AD136: 42 | AE136: 40 | AF136: 36 | AG136: 36 | AH136: 35 | AI136: 27 | AJ136: 20 | AK136: 19 | AL136: 16 | AM136: 13 | AN136: 9 | AO136: 7 | AP136: 1 | AQ136: 5 | AR136: 5 | AS136: 13 | AT136: 306 | AU136: 26 | AV136: 29 | AW136: 128 | AX136: 20
B137: 130501 | C137: JULCAN | D137: 00005307 | E137: Puesto de salud | F137: SANTA TERESA | G137: 352 | H137: 6 | I137: 6 | J137: 6 | K137: 6 | L137: 6 | M137: 6 | N137: 5 | O137: 6 | P137: 6 | Q137: 5 | R137: 5 | S137: 6 | T137: 7 | U137: 6 | V137: 6 | W137: 7 | X137: 8 | Y137: 6 | Z137: 6 | AA137: 5 | AB137: 28 | AC137: 31 | AD137: 24 | AE137: 23 | AF137: 21 | AG137: 21 | AH137: 20 | AI137: 15 | AJ137: 12 | AK137: 11 | AL137: 9 | AM137: 8 | AN137: 5 | AO137: 4 | AP137: 1 | AQ137: 3 | AR137: 3 | AS137: 8 | AT137: 177 | AU137: 15 | AV137: 17 | AW137: 74 | AX137: 12
B138: 130501 | C138: JULCAN | D138: 00016423 | E138: Puesto de salud | F138: SAN ANTONIO DE JULCAN | G138: 976 | H138: 17 | I138: 16 | J138: 17 | K138: 16 | L138: 18 | M138: 16 | N138: 15 | O138: 17 | P138: 17 | Q138: 15 | R138: 14 | S138: 17 | T138: 18 | U138: 19 | V138: 16 | W138: 19 | X138: 23 | Y138: 18 | Z138: 17 | AA138: 15 | AB138: 77 | AC138: 85 | AD138: 66 | AE138: 63 | AF138: 56 | AG138: 57 | AH138: 57 | AI138: 42 | AJ138: 32 | AK138: 31 | AL138: 25 | AM138: 21 | AN138: 14 | AO138: 10 | AP138: 2 | AQ138: 8 | AR138: 9 | AS138: 21 | AT138: 484 | AU138: 41 | AV138: 46 | AW138: 201 | AX138: 32
A139: 5 | B139: 130502 | C139: CALAMARCA (2) | G139: =+SUM(H139:AO139) -> 5092 | H139: =+SUM(H140:H144) -> 115 | I139: =+SUM(I140:I144) -> 108 | J139: 103 | K139: 92 | L139: 86 | M139: 84 | N139: 67 | O139: 75 | P139: 69 | Q139: 73 | R139: 84 | S139: 84 | T139: 98 | U139: 114 | V139: 98 | W139: 98 | X139: 115 | Y139: 101 | Z139: 98 | AA139: 87 | AB139: 414 | AC139: 487 | AD139: 348 | AE139: 331 | AF139: 309 | AG139: 273 | AH139: 239 | AI139: 235 | AJ139: 151 | AK139: 113 | AL139: 108 | AM139: 91 | AN139: 72 | AO139: 72 | AP139: 10 | AQ139: 56 | AR139: 59 | AS139: 153 | AT139: 2544 | AU139: 250 | AV139: 265 | AW139: 1055 | AX139: 247
B140: 130502 | C140: CALAMARCA | D140: 00005308 | E140: Centro de salud - camas de internamiento | F140: CALAMARCA | G140: 2277 | H140: 51 | I140: 48 | J140: 45 | K140: 41 | L140: 38 | M140: 37 | N140: 30 | O140: 33 | P140: 31 | Q140: 32 | R140: 38 | S140: 38 | T140: 44 | U140: 51 | V140: 44 | W140: 44 | X140: 51 | Y140: 46 | Z140: 44 | AA140: 39 | AB140: 185 | AC140: 217 | AD140: 156 | AE140: 147 | AF140: 139 | AG140: 123 | AH140: 107 | AI140: 105 | AJ140: 67 | AK140: 51 | AL140: 48 | AM140: 41 | AN140: 33 | AO140: 33 | AP140: 5 | AQ140: 25 | AR140: 26 | AS140: 67 | AT140: 1139 | AU140: 112 | AV140: 118 | AW140: 472 | AX140: 109
B141: 130502 | C141: CALAMARCA | D141: 00005309 | E141: Centro de salud | F141: SICCHAL | G141: 1410 | H141: 32 | I141: 30 | J141: 29 | K141: 25 | L141: 24 | M141: 24 | N141: 19 | O141: 21 | P141: 19 | Q141: 20 | R141: 23 | S141: 23 | T141: 27 | U141: 32 | V141: 27 | W141: 27 | X141: 32 | Y141: 28 | Z141: 27 | AA141: 24 | AB141: 115 | AC141: 135 | AD141: 96 | AE141: 92 | AF141: 85 | AG141: 75 | AH141: 66 | AI141: 65 | AJ141: 42 | AK141: 31 | AL141: 30 | AM141: 25 | AN141: 20 | AO141: 20 | AP141: 2 | AQ141: 15 | AR141: 17 | AS141: 43 | AT141: 703 | AU141: 69 | AV141: 73 | AW141: 292 | AX141: 69
B142: 130502 | C142: CALAMARCA | D142: 00007247 | E142: Puesto de salud | F142: BARRO NEGRO | G142: 529 | H142: 12 | I142: 11 | J142: 11 | K142: 10 | L142: 9 | M142: 9 | N142: 7 | O142: 8 | P142: 7 | Q142: 8 | R142: 9 | S142: 9 | T142: 10 | U142: 12 | V142: 10 | W142: 10 | X142: 12 | Y142: 10 | Z142: 10 | AA142: 9 | AB142: 43 | AC142: 51 | AD142: 36 | AE142: 35 | AF142: 32 | AG142: 28 | AH142: 25 | AI142: 24 | AJ142: 16 | AK142: 12 | AL142: 11 | AM142: 9 | AN142: 7 | AO142: 7 | AP142: 1 | AQ142: 6 | AR142: 6 | AS142: 16 | AT142: 265 | AU142: 26 | AV142: 28 | AW142: 110 | AX142: 26
B143: 130502 | C143: CALAMARCA | D143: 00007248 | E143: Puesto de salud | F143: CHAZKA | G143: 559 | H143: 13 | I143: 12 | J143: 11 | K143: 10 | L143: 10 | M143: 9 | N143: 7 | O143: 8 | P143: 8 | Q143: 8 | R143: 9 | S143: 9 | T143: 11 | U143: 12 | V143: 11 | W143: 11 | X143: 13 | Y143: 11 | Z143: 11 | AA143: 10 | AB143: 45 | AC143: 53 | AD143: 38 | AE143: 36 | AF143: 34 | AG143: 30 | AH143: 26 | AI143: 26 | AJ143: 17 | AK143: 12 | AL143: 12 | AM143: 10 | AN143: 8 | AO143: 8 | AP143: 1 | AQ143: 6 | AR143: 6 | AS143: 17 | AT143: 278 | AU143: 27 | AV143: 29 | AW143: 115 | AX143: 27
B144: 130502 | C144: CALAMARCA | D144: 00016424 | E144: Puesto de salud | F144: HUAGAL | G144: 317 | H144: 7 | I144: 7 | J144: 7 | K144: 6 | L144: 5 | M144: 5 | N144: 4 | O144: 5 | P144: 4 | Q144: 5 | R144: 5 | S144: 5 | T144: 6 | U144: 7 | V144: 6 | W144: 6 | X144: 7 | Y144: 6 | Z144: 6 | AA144: 5 | AB144: 26 | AC144: 31 | AD144: 22 | AE144: 21 | AF144: 19 | AG144: 17 | AH144: 15 | AI144: 15 | AJ144: 9 | AK144: 7 | AL144: 7 | AM144: 6 | AN144: 4 | AO144: 4 | AP144: 1 | AQ144: 4 | AR144: 4 | AS144: 10 | AT144: 159 | AU144: 16 | AV144: 17 | AW144: 66 | AX144: 16
A145: 3 | B145: 130503 | C145: CARABAMBA (3) | G145: 6789 | H145: =+SUM(H146:H148) -> 136 | I145: =+SUM(I146:I148) -> 147 | J145: 154 | K145: 119 | L145: 140 | M145: 158 | N145: 137 | O145: 156 | P145: 123 | Q145: 104 | R145: 114 | S145: 110 | T145: 150 | U145: 137 | V145: 138 | W145: 149 | X145: 146 | Y145: 155 | Z145: 140 | AA145: 124 | AB145: 639 | AC145: 569 | AD145: 444 | AE145: 437 | AF145: 337 | AG145: 364 | AH145: 293 | AI145: 268 | AJ145: 193 | AK145: 153 | AL145: 119 | AM145: 95 | AN145: 85 | AO145: 56 | AP145: 5 | AQ145: 80 | AR145: 55 | AS145: 208 | AT145: 3419 | AU145: 340 | AV145: 364 | AW145: 1391 | AX145: 233
B146: 130503 | C146: CARABAMBA | D146: 00005310 | E146: Centro de salud | F146: CARABAMBA | G146: 5402 | H146: 108 | I146: 117 | J146: 122 | K146: 95 | L146: 111 | M146: 126 | N146: 109 | O146: 124 | P146: 98 | Q146: 83 | R146: 90 | S146: 88 | T146: 120 | U146: 109 | V146: 110 | W146: 119 | X146: 116 | Y146: 123 | Z146: 111 | AA146: 99 | AB146: 509 | AC146: 453 | AD146: 353 | AE146: 348 | AF146: 268 | AG146: 289 | AH146: 233 | AI146: 213 | AJ146: 153 | AK146: 121 | AL146: 95 | AM146: 76 | AN146: 68 | AO146: 45 | AP146: 4 | AQ146: 64 | AR146: 44 | AS146: 165 | AT146: 2720 | AU146: 270 | AV146: 289 | AW146: 1107 | AX146: 185
B147: 130503 | C147: CARABAMBA | D147: 00005311 | E147: Puesto de salud | F147: SAN JOSE DE SALO BAJO | G147: 874 | H147: 18 | I147: 19 | J147: 20 | K147: 15 | L147: 18 | M147: 20 | N147: 18 | O147: 20 | P147: 16 | Q147: 13 | R147: 15 | S147: 14 | T147: 19 | U147: 18 | V147: 18 | W147: 19 | X147: 19 | Y147: 20 | Z147: 18 | AA147: 16 | AB147: 82 | AC147: 73 | AD147: 57 | AE147: 56 | AF147: 43 | AG147: 47 | AH147: 38 | AI147: 35 | AJ147: 25 | AK147: 20 | AL147: 15 | AM147: 12 | AN147: 11 | AO147: 7 | AP147: 1 | AQ147: 10 | AR147: 7 | AS147: 27 | AT147: 440 | AU147: 44 | AV147: 47 | AW147: 179 | AX147: 30
B148: 130501 | C148: CARABAMBA | D148: 00006773 | E148: Puesto de salud | F148: VILLA MARIA | G148: 513 | H148: 10 | I148: 11 | J148: 12 | K148: 9 | L148: 11 | M148: 12 | N148: 10 | O148: 12 | P148: 9 | Q148: 8 | R148: 9 | S148: 8 | T148: 11 | U148: 10 | V148: 10 | W148: 11 | X148: 11 | Y148: 12 | Z148: 11 | AA148: 9 | AB148: 48 | AC148: 43 | AD148: 34 | AE148: 33 | AF148: 26 | AG148: 28 | AH148: 22 | AI148: 20 | AJ148: 15 | AK148: 12 | AL148: 9 | AM148: 7 | AN148: 6 | AO148: 4 | AP148: 0 | AQ148: 6 | AR148: 4 | AS148: 16 | AT148: 259 | AU148: 26 | AV148: 28 | AW148: 105 | AX148: 18
A149: 7 | B149: 130504 | C149: HUASO (4) | G149: 6136 | H149: =+SUM(H150:H156) -> 130 | I149: =+SUM(I150:I156) -> 155 | J149: 150 | K149: 126 | L149: 145 | M149: 155 | N149: 110 | O149: 114 | P149: 114 | Q149: 126 | R149: 134 | S149: 126 | T149: 138 | U149: 142 | V149: 135 | W149: 150 | X149: 150 | Y149: 138 | Z149: 140 | AA149: 120 | AB149: 570 | AC149: 485 | AD149: 360 | AE149: 366 | AF149: 300 | AG149: 295 | AH149: 259 | AI149: 210 | AJ149: 160 | AK149: 130 | AL149: 110 | AM149: 76 | AN149: 60 | AO149: 57 | AP149: 9 | AQ149: 60 | AR149: 69 | AS149: 174 | AT149: 3065 | AU149: 340 | AV149: 360 | AW149: 1180 | AX149: 174
B150: 130504 | C150: HUASO | D150: 00005312 | E150: Centro de salud - camas de internamiento | F150: HUASO | G150: 1210 | H150: 25 | I150: 31 | J150: 28 | K150: 24 | L150: 28 | M150: 30 | N150: 22 | O150: 21 | P150: 21 | Q150: 24 | R150: 27 | S150: 25 | T150: 28 | U150: 28 | V150: 27 | W150: 30 | X150: 29 | Y150: 28 | Z150: 28 | AA150: 24 | AB150: 114 | AC150: 98 | AD150: 71 | AE150: 71 | AF150: 57 | AG150: 60 | AH150: 51 | AI150: 42 | AJ150: 32 | AK150: 25 | AL150: 22 | AM150: 16 | AN150: 11 | AO150: 12 | AP150: 2 | AQ150: 11 | AR150: 13 | AS150: 35 | AT150: 606 | AU150: 67 | AV150: 71 | AW150: 234 | AX150: 33
B151: 130504 | C151: HUASO | D151: 00006771 | E151: Centro de salud | F151: CANRAZ | G151: 1339 | H151: 28 | I151: 34 | J151: 33 | K151: 28 | L151: 31 | M151: 34 | N151: 24 | O151: 25 | P151: 25 | Q151: 28 | R151: 29 | S151: 28 | T151: 30 | U151: 31 | V151: 29 | W151: 33 | X151: 33 | Y151: 30 | Z151: 31 | AA151: 26 | AB151: 124 | AC151: 106 | AD151: 79 | AE151: 80 | AF151: 66 | AG151: 64 | AH151: 56 | AI151: 46 | AJ151: 35 | AK151: 28 | AL151: 24 | AM151: 16 | AN151: 13 | AO151: 12 | AP151: 2 | AQ151: 13 | AR151: 15 | AS151: 38 | AT151: 669 | AU151: 74 | AV151: 79 | AW151: 258 | AX151: 38
B152: 130504 | C152: HUASO | D152: 00006772 | E152: Puesto de salud | F152: LA VEGA | G152: 357 | H152: 8 | I152: 9 | J152: 9 | K152: 7 | L152: 8 | M152: 9 | N152: 6 | O152: 7 | P152: 7 | Q152: 7 | R152: 8 | S152: 7 | T152: 8 | U152: 8 | V152: 8 | W152: 9 | X152: 9 | Y152: 8 | Z152: 8 | AA152: 7 | AB152: 33 | AC152: 28 | AD152: 21 | AE152: 22 | AF152: 18 | AG152: 17 | AH152: 15 | AI152: 12 | AJ152: 9 | AK152: 8 | AL152: 6 | AM152: 4 | AN152: 4 | AO152: 3 | AP152: 0 | AQ152: 4 | AR152: 4 | AS152: 10 | AT152: 180 | AU152: 20 | AV152: 21 | AW152: 69 | AX152: 10
B153: 130504 | C153: HUASO | D153: 00006770 | E153: Puesto de salud | F153: CHINCHINVARA | G153: 1115 | H153: 24 | I153: 28 | J153: 27 | K153: 22 | L153: 26 | M153: 29 | N153: 21 | O153: 21 | P153: 21 | Q153: 23 | R153: 24 | S153: 23 | T153: 25 | U153: 25 | V153: 24 | W153: 27 | X153: 28 | Y153: 25 | Z153: 25 | AA153: 22 | AB153: 103 | AC153: 87 | AD153: 65 | AE153: 66 | AF153: 55 | AG153: 53 | AH153: 49 | AI153: 38 | AJ153: 29 | AK153: 24 | AL153: 21 | AM153: 14 | AN153: 11 | AO153: 10 | AP153: 2 | AQ153: 11 | AR153: 13 | AS153: 31 | AT153: 554 | AU153: 62 | AV153: 65 | AW153: 213 | AX153: 32
B154: 130504 | C154: HUASO | D154: 00005313 | E154: Puesto de salud | F154: PARASIVE | G154: 409 | H154: 9 | I154: 10 | J154: 10 | K154: 8 | L154: 10 | M154: 10 | N154: 7 | O154: 8 | P154: 8 | Q154: 9 | R154: 9 | S154: 8 | T154: 9 | U154: 9 | V154: 9 | W154: 10 | X154: 10 | Y154: 9 | Z154: 9 | AA154: 8 | AB154: 38 | AC154: 32 | AD154: 24 | AE154: 25 | AF154: 20 | AG154: 20 | AH154: 17 | AI154: 14 | AJ154: 11 | AK154: 9 | AL154: 7 | AM154: 5 | AN154: 4 | AO154: 4 | AP154: 0 | AQ154: 4 | AR154: 5 | AS154: 12 | AT154: 206 | AU154: 23 | AV154: 24 | AW154: 79 | AX154: 12
B155: 130504 | C155: HUASO | D155: 00016422 | E155: Puesto de salud | F155: LA UNION | G155: 673 | H155: 14 | I155: 17 | J155: 17 | K155: 15 | L155: 16 | M155: 17 | N155: 12 | O155: 13 | P155: 13 | Q155: 14 | R155: 15 | S155: 14 | T155: 15 | U155: 17 | V155: 15 | W155: 16 | X155: 16 | Y155: 15 | Z155: 15 | AA155: 13 | AB155: 62 | AC155: 53 | AD155: 39 | AE155: 40 | AF155: 33 | AG155: 32 | AH155: 28 | AI155: 23 | AJ155: 17 | AK155: 14 | AL155: 12 | AM155: 8 | AN155: 7 | AO155: 6 | AP155: 1 | AQ155: 7 | AR155: 8 | AS155: 19 | AT155: 335 | AU155: 37 | AV155: 39 | AW155: 129 | AX155: 19
B156: 131001 | C156: HUASO | D156: 00005335 | E156: Puesto de salud | F156: UNINGAMBAL | G156: 1033 | H156: 22 | I156: 26 | J156: 26 | K156: 22 | L156: 26 | M156: 26 | N156: 18 | O156: 19 | P156: 19 | Q156: 21 | R156: 22 | S156: 21 | T156: 23 | U156: 24 | V156: 23 | W156: 25 | X156: 25 | Y156: 23 | Z156: 24 | AA156: 20 | AB156: 96 | AC156: 81 | AD156: 61 | AE156: 62 | AF156: 51 | AG156: 49 | AH156: 43 | AI156: 35 | AJ156: 27 | AK156: 22 | AL156: 18 | AM156: 13 | AN156: 10 | AO156: 10 | AP156: 2 | AQ156: 10 | AR156: 11 | AS156: 29 | AT156: 515 | AU156: 57 | AV156: 61 | AW156: 198 | AX156: 30
A157: =+SUM(A158:A216) -> 49 | B157: 130600 | C157: OTUZCO (6) | G157: 83652 | H157: =+H158+H168+H180+H185+H188+H190+H194+H196+H202+H206 -> 1082 | I157: =+I158+I168+I180+I185+I188+I190+I194+I196+I202+I206 -> 1079 | J157: 1495 | K157: 1528 | L157: 1703 | M157: 1743 | N157: 1444 | O157: 1545 | P157: 1458 | Q157: 1521 | R157: 1573 | S157: 1604 | T157: 1683 | U157: 1686 | V157: 1669 | W157: 1596 | X157: 1705 | Y157: 1586 | Z157: 1467 | AA157: 1393 | AB157: 6910 | AC157: 6888 | AD157: 5941 | AE157: 5494 | AF157: 4961 | AG157: 4830 | AH157: 4170 | AI157: 3491 | AJ157: 2791 | AK157: 2376 | AL157: 1791 | AM157: 1469 | AN157: 1024 | AO157: 956 | AP157: 49 | AQ157: 495 | AR157: 593 | AS157: 1731 | AT157: 41958 | AU157: 4153 | AV157: 3945 | AW157: 17432 | AX157: 2660
A158: 9 | B158: 130601 | C158: OTUZCO (1) | G158: 27021 | H158: =+SUM(H159:H167) -> 326 | I158: =+SUM(I159:I167) -> 344 | J158: 407 | K158: 368 | L158: 430 | M158: 439 | N158: 466 | O158: 492 | P158: 424 | Q158: 474 | R158: 528 | S158: 527 | T158: 520 | U158: 508 | V158: 504 | W158: 479 | X158: 478 | Y158: 460 | Z158: 434 | AA158: 420 | AB158: 2126 | AC158: 2133 | AD158: 2064 | AE158: 1921 | AF158: 1730 | AG158: 1659 | AH158: 1471 | AI158: 1272 | AJ158: 1003 | AK158: 822 | AL158: 587 | AM158: 502 | AN158: 357 | AO158: 346 | AP158: 12 | AQ158: 145 | AR158: 183 | AS158: 465 | AT158: 13592 | AU158: 1266 | AV158: 1158 | AW158: 5858 | AX158: 728
B159: 130601 | C159: OTUZCO | D159: 00005314 | E159: Hospital DE APOYO | F159: OTUZCO | G159: 12101 | H159: 146 | I159: 154 | J159: 184 | K159: 165 | L159: 192 | M159: 198 | N159: 209 | O159: 220 | P159: 189 | Q159: 213 | R159: 235 | S159: 235 | T159: 232 | U159: 227 | V159: 225 | W159: 214 | X159: 214 | Y159: 207 | Z159: 195 | AA159: 187 | AB159: 953 | AC159: 956 | AD159: 926 | AE159: 861 | AF159: 776 | AG159: 742 | AH159: 659 | AI159: 569 | AJ159: 451 | AK159: 367 | AL159: 262 | AM159: 224 | AN159: 160 | AO159: 154 | AP159: 6 | AQ159: 66 | AR159: 82 | AS159: 209 | AT159: 6089 | AU159: 567 | AV159: 518 | AW159: 2624 | AX159: 326
B160: 130601 | C160: OTUZCO | D160: 00005317 | E160: Centro de salud | F160: RAMON CASTILLA | G160: 8709 | H160: 105 | I160: 111 | J160: 131 | K160: 119 | L160: 139 | M160: 141 | N160: 150 | O160: 158 | P160: 137 | Q160: 153 | R160: 170 | S160: 170 | T160: 167 | U160: 164 | V160: 163 | W160: 155 | X160: 154 | Y160: 148 | Z160: 139 | AA160: 136 | AB160: 685 | AC160: 687 | AD160: 665 | AE160: 619 | AF160: 557 | AG160: 535 | AH160: 474 | AI160: 410 | AJ160: 323 | AK160: 265 | AL160: 190 | AM160: 162 | AN160: 115 | AO160: 112 | AP160: 4 | AQ160: 46 | AR160: 59 | AS160: 150 | AT160: 4378 | AU160: 408 | AV160: 373 | AW160: 1887 | AX160: 235
B161: 130601 | C161: OTUZCO | D161: 00005315 | E161: Puesto de salud | F161: PANGO | G161: 1055 | H161: 13 | I161: 13 | J161: 16 | K161: 14 | L161: 17 | M161: 17 | N161: 18 | O161: 19 | P161: 17 | Q161: 18 | R161: 21 | S161: 21 | T161: 20 | U161: 20 | V161: 20 | W161: 19 | X161: 19 | Y161: 18 | Z161: 17 | AA161: 16 | AB161: 83 | AC161: 83 | AD161: 80 | AE161: 75 | AF161: 67 | AG161: 65 | AH161: 57 | AI161: 50 | AJ161: 39 | AK161: 32 | AL161: 23 | AM161: 20 | AN161: 14 | AO161: 14 | AP161: 1 | AQ161: 6 | AR161: 7 | AS161: 18 | AT161: 529 | AU161: 49 | AV161: 45 | AW161: 228 | AX161: 28
B162: 130601 | C162: OTUZCO | D162: 00005316 | E162: Puesto de salud | F162: SAMNE | G162: 759 | H162: 9 | I162: 10 | J162: 11 | K162: 10 | L162: 12 | M162: 12 | N162: 13 | O162: 14 | P162: 12 | Q162: 13 | R162: 15 | S162: 15 | T162: 15 | U162: 14 | V162: 14 | W162: 13 | X162: 13 | Y162: 13 | Z162: 12 | AA162: 12 | AB162: 60 | AC162: 60 | AD162: 58 | AE162: 54 | AF162: 49 | AG162: 47 | AH162: 41 | AI162: 36 | AJ162: 28 | AK162: 23 | AL162: 17 | AM162: 14 | AN162: 10 | AO162: 10 | AP162: 0 | AQ162: 4 | AR162: 5 | AS162: 13 | AT162: 382 | AU162: 36 | AV162: 33 | AW162: 165 | AX162: 20
B163: 130601 | C163: OTUZCO | D163: 00006932 | E163: Puesto de salud | F163: PACHIN ALTO | G163: 410 | H163: 5 | I163: 5 | J163: 6 | K163: 6 | L163: 7 | M163: 7 | N163: 7 | O163: 8 | P163: 6 | Q163: 7 | R163: 8 | S163: 8 | T163: 8 | U163: 8 | V163: 8 | W163: 7 | X163: 7 | Y163: 7 | Z163: 7 | AA163: 6 | AB163: 32 | AC163: 33 | AD163: 31 | AE163: 29 | AF163: 26 | AG163: 25 | AH163: 22 | AI163: 19 | AJ163: 15 | AK163: 13 | AL163: 9 | AM163: 8 | AN163: 5 | AO163: 5 | AP163: 0 | AQ163: 2 | AR163: 3 | AS163: 7 | AT163: 207 | AU163: 19 | AV163: 18 | AW163: 89 | AX163: 11
B164: 130601 | C164: OTUZCO | D164: 00006931 | E164: Puesto de salud | F164: SAN ISIDRO | G164: 2481 | H164: 30 | I164: 32 | J164: 37 | K164: 34 | L164: 39 | M164: 40 | N164: 43 | O164: 45 | P164: 39 | Q164: 44 | R164: 49 | S164: 48 | T164: 48 | U164: 47 | V164: 46 | W164: 44 | X164: 44 | Y164: 42 | Z164: 40 | AA164: 39 | AB164: 195 | AC164: 196 | AD164: 189 | AE164: 176 | AF164: 159 | AG164: 152 | AH164: 135 | AI164: 117 | AJ164: 92 | AK164: 76 | AL164: 53 | AM164: 46 | AN164: 33 | AO164: 32 | AP164: 1 | AQ164: 13 | AR164: 17 | AS164: 43 | AT164: 1248 | AU164: 116 | AV164: 106 | AW164: 538 | AX164: 67
B165: 130601 | C165: OTUZCO | D165: 00030225 | E165: Puesto de salud | F165: SANTA ROSA | G165: 762 | H165: 9 | I165: 10 | J165: 11 | K165: 10 | L165: 12 | M165: 12 | N165: 13 | O165: 14 | P165: 12 | Q165: 13 | R165: 15 | S165: 15 | T165: 15 | U165: 14 | V165: 14 | W165: 14 | X165: 14 | Y165: 13 | Z165: 12 | AA165: 12 | AB165: 60 | AC165: 60 | AD165: 58 | AE165: 54 | AF165: 49 | AG165: 47 | AH165: 42 | AI165: 36 | AJ165: 28 | AK165: 23 | AL165: 17 | AM165: 14 | AN165: 10 | AO165: 10 | AP165: 0 | AQ165: 4 | AR165: 5 | AS165: 13 | AT165: 385 | AU165: 36 | AV165: 33 | AW165: 166 | AX165: 21
B166: 130601 | C166: OTUZCO | D166: 00018298 | E166: Puesto de salud | F166: ALLACDAY | G166: 551 | H166: 7 | I166: 7 | J166: 8 | K166: 7 | L166: 9 | M166: 9 | N166: 10 | O166: 10 | P166: 9 | Q166: 10 | R166: 11 | S166: 11 | T166: 11 | U166: 10 | V166: 10 | W166: 10 | X166: 10 | Y166: 9 | Z166: 9 | AA166: 9 | AB166: 43 | AC166: 43 | AD166: 42 | AE166: 39 | AF166: 35 | AG166: 34 | AH166: 30 | AI166: 26 | AJ166: 20 | AK166: 17 | AL166: 12 | AM166: 10 | AN166: 7 | AO166: 7 | AP166: 0 | AQ166: 3 | AR166: 4 | AS166: 9 | AT166: 277 | AU166: 26 | AV166: 24 | AW166: 119 | AX166: 15
B167: 130601 | C167: OTUZCO | D167: 00018299 | E167: Puesto de salud | F167: PAMPA GRANDE | G167: 193 | H167: 2 | I167: 2 | J167: 3 | K167: 3 | L167: 3 | M167: 3 | N167: 3 | O167: 4 | P167: 3 | Q167: 3 | R167: 4 | S167: 4 | T167: 4 | U167: 4 | V167: 4 | W167: 3 | X167: 3 | Y167: 3 | Z167: 3 | AA167: 3 | AB167: 15 | AC167: 15 | AD167: 15 | AE167: 14 | AF167: 12 | AG167: 12 | AH167: 11 | AI167: 9 | AJ167: 7 | AK167: 6 | AL167: 4 | AM167: 4 | AN167: 3 | AO167: 2 | AP167: 0 | AQ167: 1 | AR167: 1 | AS167: 3 | AT167: 97 | AU167: 9 | AV167: 8 | AW167: 42 | AX167: 5
A168: 11 | B168: 130602 | C168: AGALLPAMPA (2) | G168: 10384 | H168: =+SUM(H169:H179) -> 96 | I168: =+SUM(I169:I179) -> 112 | J168: 187 | K168: 214 | L168: 181 | M168: 212 | N168: 223 | O168: 237 | P168: 213 | Q168: 230 | R168: 203 | S168: 231 | T168: 275 | U168: 256 | V168: 247 | W168: 229 | X168: 263 | Y168: 230 | Z168: 217 | AA168: 199 | AB168: 1052 | AC168: 1072 | AD168: 784 | AE168: 591 | AF168: 537 | AG168: 515 | AH168: 404 | AI168: 289 | AJ168: 213 | AK168: 209 | AL168: 170 | AM168: 127 | AN168: 86 | AO168: 80 | AP168: 6 | AQ168: 65 | AR168: 34 | AS168: 181 | AT168: 5216 | AU168: 623 | AV168: 568 | AW168: 2249 | AX168: 275
B169: 130602 | C169: AGALLPAMPA | D169: 00005318 | E169: Centro de salud - camas de internamiento | F169: AGALLPAMPA | G169: 1702 | H169: 16 | I169: 18 | J169: 30 | K169: 35 | L169: 30 | M169: 35 | N169: 37 | O169: 39 | P169: 35 | Q169: 38 | R169: 33 | S169: 38 | T169: 45 | U169: 42 | V169: 41 | W169: 37 | X169: 43 | Y169: 38 | Z169: 36 | AA169: 33 | AB169: 172 | AC169: 176 | AD169: 128 | AE169: 97 | AF169: 88 | AG169: 84 | AH169: 66 | AI169: 47 | AJ169: 35 | AK169: 34 | AL169: 28 | AM169: 21 | AN169: 14 | AO169: 13 | AP169: 1 | AQ169: 10 | AR169: 5 | AS169: 30 | AT169: 854 | AU169: 102 | AV169: 93 | AW169: 368 | AX169: 45
B170: 130602 | C170: AGALLPAMPA | D170: 00005319 | E170: Puesto de salud | F170: CHOTA | G170: 2488 | H170: 22 | I170: 28 | J170: 46 | K170: 50 | L170: 42 | M170: 52 | N170: 54 | O170: 57 | P170: 50 | Q170: 57 | R170: 48 | S170: 56 | T170: 66 | U170: 61 | V170: 58 | W170: 57 | X170: 63 | Y170: 56 | Z170: 52 | AA170: 47 | AB170: 249 | AC170: 259 | AD170: 187 | AE170: 141 | AF170: 128 | AG170: 125 | AH170: 96 | AI170: 69 | AJ170: 50 | AK170: 52 | AL170: 40 | AM170: 32 | AN170: 20 | AO170: 18 | AP170: 2 | AQ170: 17 | AR170: 8 | AS170: 43 | AT170: 1260 | AU170: 149 | AV170: 137 | AW170: 546 | AX170: 69
B171: 130602 | C171: AGALLPAMPA | D171: 00006933 | E171: Puesto de salud | F171: PARAISO | G171: 1581 | H171: 15 | I171: 17 | J171: 28 | K171: 33 | L171: 28 | M171: 32 | N171: 34 | O171: 36 | P171: 33 | Q171: 35 | R171: 31 | S171: 35 | T171: 42 | U171: 39 | V171: 38 | W171: 35 | X171: 40 | Y171: 35 | Z171: 33 | AA171: 30 | AB171: 160 | AC171: 163 | AD171: 119 | AE171: 90 | AF171: 82 | AG171: 78 | AH171: 61 | AI171: 44 | AJ171: 33 | AK171: 32 | AL171: 26 | AM171: 19 | AN171: 13 | AO171: 12 | AP171: 1 | AQ171: 10 | AR171: 5 | AS171: 28 | AT171: 793 | AU171: 95 | AV171: 86 | AW171: 342 | AX171: 42
B172: 130602 | C172: AGALLPAMPA | D172: 00006934 | E172: Puesto de salud | F172: CARATA | G172: 886 | H172: 8 | I172: 10 | J172: 17 | K172: 19 | L172: 16 | M172: 18 | N172: 18 | O172: 19 | P172: 18 | Q172: 19 | R172: 17 | S172: 19 | T172: 25 | U172: 21 | V172: 20 | W172: 19 | X172: 23 | Y172: 20 | Z172: 18 | AA172: 16 | AB172: 92 | AC172: 90 | AD172: 67 | AE172: 50 | AF172: 46 | AG172: 44 | AH172: 36 | AI172: 25 | AJ172: 18 | AK172: 17 | AL172: 15 | AM172: 10 | AN172: 8 | AO172: 8 | AP172: 1 | AQ172: 6 | AR172: 3 | AS172: 15 | AT172: 439 | AU172: 54 | AV172: 50 | AW172: 187 | AX172: 22
B173: 130602 | C173: AGALLPAMPA | D173: 00008336 | E173: Puesto de salud | F173: CUSHCANDAY | G173: 306 | H173: 3 | I173: 3 | J173: 5 | K173: 6 | L173: 5 | M173: 6 | N173: 7 | O173: 7 | P173: 6 | Q173: 7 | R173: 6 | S173: 7 | T173: 8 | U173: 8 | V173: 7 | W173: 7 | X173: 8 | Y173: 7 | Z173: 6 | AA173: 6 | AB173: 31 | AC173: 31 | AD173: 25 | AE173: 17 | AF173: 16 | AG173: 15 | AH173: 12 | AI173: 8 | AJ173: 6 | AK173: 6 | AL173: 5 | AM173: 4 | AN173: 3 | AO173: 2 | AP173: 0 | AQ173: 2 | AR173: 1 | AS173: 5 | AT173: 153 | AU173: 18 | AV173: 17 | AW173: 66 | AX173: 8
B174: 130602 | C174: AGALLPAMPA | D174: 00013928 | E174: Puesto de salud | F174: PAIHUAL | G174: 610 | H174: 6 | I174: 6 | J174: 11 | K174: 13 | L174: 11 | M174: 12 | N174: 13 | O174: 14 | P174: 13 | Q174: 13 | R174: 12 | S174: 14 | T174: 16 | U174: 15 | V174: 15 | W174: 13 | X174: 15 | Y174: 13 | Z174: 13 | AA174: 12 | AB174: 62 | AC174: 63 | AD174: 46 | AE174: 35 | AF174: 31 | AG174: 30 | AH174: 24 | AI174: 17 | AJ174: 13 | AK174: 12 | AL174: 10 | AM174: 7 | AN174: 5 | AO174: 5 | AP174: 0 | AQ174: 4 | AR174: 2 | AS174: 11 | AT174: 305 | AU174: 36 | AV174: 33 | AW174: 131 | AX174: 16
B175: 130602 | C175: AGALLPAMPA | D175: 00013929 | E175: Puesto de salud | F175: PUEBLO LIBRE | G175: 503 | H175: 5 | I175: 5 | J175: 9 | K175: 10 | L175: 9 | M175: 10 | N175: 11 | O175: 11 | P175: 10 | Q175: 11 | R175: 10 | S175: 11 | T175: 13 | U175: 13 | V175: 12 | W175: 11 | X175: 13 | Y175: 11 | Z175: 11 | AA175: 10 | AB175: 51 | AC175: 52 | AD175: 38 | AE175: 29 | AF175: 26 | AG175: 25 | AH175: 20 | AI175: 14 | AJ175: 10 | AK175: 10 | AL175: 8 | AM175: 6 | AN175: 4 | AO175: 4 | AP175: 0 | AQ175: 3 | AR175: 2 | AS175: 9 | AT175: 253 | AU175: 30 | AV175: 27 | AW175: 109 | AX175: 13
B176: 130602 | C176: AGALLPAMPA | D176: 00013930 | E176: Puesto de salud | F176: LA MORADA | G176: 242 | H176: 2 | I176: 3 | J176: 4 | K176: 5 | L176: 4 | M176: 5 | N176: 5 | O176: 6 | P176: 5 | Q176: 5 | R176: 5 | S176: 5 | T176: 6 | U176: 6 | V176: 6 | W176: 5 | X176: 6 | Y176: 5 | Z176: 5 | AA176: 5 | AB176: 25 | AC176: 25 | AD176: 18 | AE176: 14 | AF176: 13 | AG176: 12 | AH176: 9 | AI176: 7 | AJ176: 5 | AK176: 5 | AL176: 4 | AM176: 3 | AN176: 2 | AO176: 2 | AP176: 0 | AQ176: 1 | AR176: 1 | AS176: 4 | AT176: 122 | AU176: 15 | AV176: 13 | AW176: 53 | AX176: 6
B177: 130602 | C177: AGALLPAMPA | D177: 00013931 | E177: Puesto de salud | F177: MOTIL | G177: 1214 | H177: 11 | I177: 13 | J177: 22 | K177: 25 | L177: 21 | M177: 25 | N177: 26 | O177: 28 | P177: 25 | Q177: 27 | R177: 24 | S177: 27 | T177: 32 | U177: 30 | V177: 29 | W177: 27 | X177: 31 | Y177: 27 | Z177: 25 | AA177: 23 | AB177: 123 | AC177: 125 | AD177: 92 | AE177: 69 | AF177: 63 | AG177: 60 | AH177: 47 | AI177: 34 | AJ177: 25 | AK177: 24 | AL177: 20 | AM177: 15 | AN177: 10 | AO177: 9 | AP177: 1 | AQ177: 7 | AR177: 4 | AS177: 21 | AT177: 610 | AU177: 73 | AV177: 66 | AW177: 263 | AX177: 32
B178: 130602 | C178: AGALLPAMPA | D178: 00013932 | E178: Puesto de salud | F178: SAN AGUSTIN | G178: 610 | H178: 6 | I178: 6 | J178: 11 | K178: 13 | L178: 11 | M178: 12 | N178: 13 | O178: 14 | P178: 13 | Q178: 13 | R178: 12 | S178: 14 | T178: 16 | U178: 15 | V178: 15 | W178: 13 | X178: 15 | Y178: 13 | Z178: 13 | AA178: 12 | AB178: 62 | AC178: 63 | AD178: 46 | AE178: 35 | AF178: 31 | AG178: 30 | AH178: 24 | AI178: 17 | AJ178: 13 | AK178: 12 | AL178: 10 | AM178: 7 | AN178: 5 | AO178: 5 | AP178: 0 | AQ178: 4 | AR178: 2 | AS178: 11 | AT178: 305 | AU178: 36 | AV178: 33 | AW178: 131 | AX178: 16
B179: 130602 | C179: AGALLPAMPA | D179: 00024601 | E179: Puesto de salud | F179: LABUNDAY | G179: 242 | H179: 2 | I179: 3 | J179: 4 | K179: 5 | L179: 4 | M179: 5 | N179: 5 | O179: 6 | P179: 5 | Q179: 5 | R179: 5 | S179: 5 | T179: 6 | U179: 6 | V179: 6 | W179: 5 | X179: 6 | Y179: 5 | Z179: 5 | AA179: 5 | AB179: 25 | AC179: 25 | AD179: 18 | AE179: 14 | AF179: 13 | AG179: 12 | AH179: 9 | AI179: 7 | AJ179: 5 | AK179: 5 | AL179: 4 | AM179: 3 | AN179: 2 | AO179: 2 | AP179: 0 | AQ179: 1 | AR179: 1 | AS179: 4 | AT179: 122 | AU179: 15 | AV179: 13 | AW179: 53 | AX179: 6
A180: 4 | B180: 130604 | C180: CHARAT (3) | G180: 2418 | H180: =+SUM(H181:H184) -> 25 | I180: 13 | J180: 25 | K180: 33 | L180: 44 | M180: 42 | N180: 33 | O180: 36 | P180: 38 | Q180: 36 | R180: 39 | S180: 47 | T180: 49 | U180: 38 | V180: 38 | W180: 30 | X180: 44 | Y180: 47 | Z180: 25 | AA180: 36 | AB180: 149 | AC180: 167 | AD180: 167 | AE180: 157 | AF180: 154 | AG180: 154 | AH180: 149 | AI180: 132 | AJ180: 113 | AK180: 113 | AL180: 85 | AM180: 77 | AN180: 39 | AO180: 44 | AP180: 0 | AQ180: 8 | AR180: 17 | AS180: 44 | AT180: 1210 | AU180: 102 | AV180: 99 | AW180: 446 | AX180: 22
B181: 130604 | C181: CHARAT | D181: 00005321 | E181: Centro de salud | F181: CALLANCAS | G181: 443 | H181: 5 | I181: 2 | J181: 5 | K181: 6 | L181: 8 | M181: 8 | N181: 6 | O181: 7 | P181: 7 | Q181: 7 | R181: 7 | S181: 9 | T181: 9 | U181: 7 | V181: 7 | W181: 5 | X181: 8 | Y181: 9 | Z181: 5 | AA181: 7 | AB181: 27 | AC181: 30 | AD181: 30 | AE181: 29 | AF181: 28 | AG181: 28 | AH181: 27 | AI181: 24 | AJ181: 21 | AK181: 21 | AL181: 15 | AM181: 14 | AN181: 7 | AO181: 8 | AP181: 0 | AQ181: 1 | AR181: 3 | AS181: 8 | AT181: 220 | AU181: 19 | AV181: 18 | AW181: 81 | AX181: 4
B182: 130604 | C182: CHARAT | D182: 00005322 | E182: Puesto de salud | F182: CHARAT | G182: 654 | H182: 7 | I182: 4 | J182: 6 | K182: 9 | L182: 12 | M182: 11 | N182: 9 | O182: 9 | P182: 10 | Q182: 9 | R182: 11 | S182: 12 | T182: 13 | U182: 10 | V182: 10 | W182: 9 | X182: 12 | Y182: 12 | Z182: 6 | AA182: 9 | AB182: 41 | AC182: 46 | AD182: 46 | AE182: 42 | AF182: 42 | AG182: 42 | AH182: 41 | AI182: 36 | AJ182: 30 | AK182: 30 | AL182: 24 | AM182: 21 | AN182: 11 | AO182: 12 | AP182: 0 | AQ182: 2 | AR182: 5 | AS182: 12 | AT182: 330 | AU182: 27 | AV182: 27 | AW182: 122 | AX182: 6
B183: 130604 | C183: CHARAT | D183: 00016898 | E183: Puesto de salud | F183: LA RAMADA | G183: 443 | H183: 5 | I183: 2 | J183: 5 | K183: 6 | L183: 8 | M183: 8 | N183: 6 | O183: 7 | P183: 7 | Q183: 7 | R183: 7 | S183: 9 | T183: 9 | U183: 7 | V183: 7 | W183: 5 | X183: 8 | Y183: 9 | Z183: 5 | AA183: 7 | AB183: 27 | AC183: 30 | AD183: 30 | AE183: 29 | AF183: 28 | AG183: 28 | AH183: 27 | AI183: 24 | AJ183: 21 | AK183: 21 | AL183: 15 | AM183: 14 | AN183: 7 | AO183: 8 | AP183: 0 | AQ183: 2 | AR183: 3 | AS183: 8 | AT183: 220 | AU183: 19 | AV183: 18 | AW183: 81 | AX183: 4
B184: 130604 | C184: CHARAT | D184: 00016900 | E184: Puesto de salud | F184: CAYANCHAL | G184: 878 | H184: 8 | I184: 5 | J184: 9 | K184: 12 | L184: 16 | M184: 15 | N184: 12 | O184: 13 | P184: 14 | Q184: 13 | R184: 14 | S184: 17 | T184: 18 | U184: 14 | V184: 14 | W184: 11 | X184: 16 | Y184: 17 | Z184: 9 | AA184: 13 | AB184: 54 | AC184: 61 | AD184: 61 | AE184: 57 | AF184: 56 | AG184: 56 | AH184: 54 | AI184: 48 | AJ184: 41 | AK184: 41 | AL184: 31 | AM184: 28 | AN184: 14 | AO184: 16 | AP184: 0 | AQ184: 3 | AR184: 6 | AS184: 16 | AT184: 440 | AU184: 37 | AV184: 36 | AW184: 162 | AX184: 8
A185: 2 | B185: 130605 | C185: HUARANCHAL (4) | G185: 4137 | H185: =+SUM(H186:H187) -> 59 | I185: =+SUM(I186:I187) -> 65 | J185: 80 | K185: 114 | L185: 83 | M185: 89 | N185: 62 | O185: 71 | P185: 76 | Q185: 78 | R185: 76 | S185: 84 | T185: 85 | U185: 86 | V185: 76 | W185: 74 | X185: 76 | Y185: 59 | Z185: 52 | AA185: 60 | AB185: 304 | AC185: 308 | AD185: 268 | AE185: 280 | AF185: 277 | AG185: 252 | AH185: 227 | AI185: 182 | AJ185: 167 | AK185: 120 | AL185: 88 | AM185: 70 | AN185: 49 | AO185: 40 | AP185: 1 | AQ185: 29 | AR185: 30 | AS185: 94 | AT185: 2063 | AU185: 220 | AV185: 179 | AW185: 810 | AX185: 191
B186: 130605 | C186: HUARANCHAL | D186: 00005323 | E186: Puesto de salud | F186: HUARANCHAL | G186: 3355 | H186: 48 | I186: 53 | J186: 65 | K186: 92 | L186: 67 | M186: 72 | N186: 50 | O186: 58 | P186: 62 | Q186: 63 | R186: 62 | S186: 68 | T186: 69 | U186: 70 | V186: 62 | W186: 60 | X186: 62 | Y186: 48 | Z186: 42 | AA186: 49 | AB186: 246 | AC186: 250 | AD186: 217 | AE186: 227 | AF186: 225 | AG186: 204 | AH186: 184 | AI186: 148 | AJ186: 135 | AK186: 97 | AL186: 71 | AM186: 57 | AN186: 40 | AO186: 32 | AP186: 1 | AQ186: 24 | AR186: 24 | AS186: 76 | AT186: 1673 | AU186: 178 | AV186: 145 | AW186: 657 | AX186: 155
B187: 130605 | C187: HUARANCHAL | D187: 00005324 | E187: Puesto de salud | F187: HUAYOBAMBA | G187: 782 | H187: 11 | I187: 12 | J187: 15 | K187: 22 | L187: 16 | M187: 17 | N187: 12 | O187: 13 | P187: 14 | Q187: 15 | R187: 14 | S187: 16 | T187: 16 | U187: 16 | V187: 14 | W187: 14 | X187: 14 | Y187: 11 | Z187: 10 | AA187: 11 | AB187: 58 | AC187: 58 | AD187: 51 | AE187: 53 | AF187: 52 | AG187: 48 | AH187: 43 | AI187: 34 | AJ187: 32 | AK187: 23 | AL187: 17 | AM187: 13 | AN187: 9 | AO187: 8 | AP187: 0 | AQ187: 5 | AR187: 6 | AS187: 18 | AT187: 390 | AU187: 42 | AV187: 34 | AW187: 153 | AX187: 36
A188: 1 | B188: 130606 | C188: LA CUESTA (5) | G188: 639 | H188: =+H189 -> 11 | I188: =+I189 -> 9 | J188: 4 | K188: 9 | L188: 9 | M188: 10 | N188: 7 | O188: 10 | P188: 5 | Q188: 6 | R188: 12 | S188: 7 | T188: 9 | U188: 12 | V188: 14 | W188: 9 | X188: 8 | Y188: 6 | Z188: 10 | AA188: 10 | AB188: 38 | AC188: 52 | AD188: 56 | AE188: 55 | AF188: 41 | AG188: 42 | AH188: 31 | AI188: 32 | AJ188: 33 | AK188: 25 | AL188: 15 | AM188: 17 | AN188: 13 | AO188: 12 | AP188: 1 | AQ188: 6 | AR188: 5 | AS188: 23 | AT188: 323 | AU188: 24 | AV188: 20 | AW188: 145 | AX188: 18
B189: 130606 | C189: LA CUESTA | D189: 00005247 | E189: Puesto de salud | F189: LA CUESTA | G189: 639 | H189: 11 | I189: 9 | J189: 4 | K189: 9 | L189: 9 | M189: 10 | N189: 7 | O189: 10 | P189: 5 | Q189: 6 | R189: 12 | S189: 7 | T189: 9 | U189: 12 | V189: 14 | W189: 9 | X189: 8 | Y189: 6 | Z189: 10 | AA189: 10 | AB189: 38 | AC189: 52 | AD189: 56 | AE189: 55 | AF189: 41 | AG189: 42 | AH189: 31 | AI189: 32 | AJ189: 33 | AK189: 25 | AL189: 15 | AM189: 17 | AN189: 13 | AO189: 12 | AP189: 1 | AQ189: 6 | AR189: 5 | AS189: 23 | AT189: 323 | AU189: 24 | AV189: 20 | AW189: 145 | AX189: 18
A190: 3 | B190: 130608 | C190: MACHE (6) | G190: 2757 | H190: =+SUM(H191:H193) -> 41 | I190: =+SUM(I191:I193) -> 43 | J190: 41 | K190: 41 | L190: 36 | M190: 49 | N190: 32 | O190: 43 | P190: 41 | Q190: 44 | R190: 49 | S190: 49 | T190: 36 | U190: 38 | V190: 46 | W190: 32 | X190: 49 | Y190: 38 | Z190: 41 | AA190: 37 | AB190: 194 | AC190: 263 | AD190: 194 | AE190: 201 | AF190: 153 | AG190: 167 | AH190: 168 | AI190: 147 | AJ190: 102 | AK190: 105 | AL190: 84 | AM190: 66 | AN190: 41 | AO190: 46 | AP190: 2 | AQ190: 20 | AR190: 20 | AS190: 54 | AT190: 1381 | AU190: 112 | AV190: 101 | AW190: 579 | AX190: 73
B191: 130608 | C191: MACHE | D191: 00005325 | E191: Centro de salud | F191: MACHE | G191: 1357 | H191: 20 | I191: 21 | J191: 20 | K191: 20 | L191: 18 | M191: 24 | N191: 16 | O191: 21 | P191: 20 | Q191: 22 | R191: 24 | S191: 24 | T191: 18 | U191: 19 | V191: 23 | W191: 16 | X191: 24 | Y191: 19 | Z191: 21 | AA191: 18 | AB191: 95 | AC191: 129 | AD191: 95 | AE191: 99 | AF191: 75 | AG191: 82 | AH191: 83 | AI191: 73 | AJ191: 50 | AK191: 52 | AL191: 41 | AM191: 33 | AN191: 20 | AO191: 22 | AP191: 1 | AQ191: 10 | AR191: 10 | AS191: 27 | AT191: 681 | AU191: 55 | AV191: 50 | AW191: 285 | AX191: 36
B192: 130608 | C192: MACHE | D192: 00012823 | E192: Puesto de salud | F192: LLUIN | G192: 680 | H192: 10 | I192: 11 | J192: 10 | K192: 10 | L192: 9 | M192: 12 | N192: 8 | O192: 11 | P192: 10 | Q192: 11 | R192: 12 | S192: 12 | T192: 9 | U192: 9 | V192: 11 | W192: 8 | X192: 12 | Y192: 9 | Z192: 10 | AA192: 9 | AB192: 48 | AC192: 65 | AD192: 48 | AE192: 50 | AF192: 38 | AG192: 41 | AH192: 41 | AI192: 36 | AJ192: 25 | AK192: 26 | AL192: 21 | AM192: 16 | AN192: 10 | AO192: 12 | AP192: 0 | AQ192: 5 | AR192: 5 | AS192: 13 | AT192: 340 | AU192: 28 | AV192: 25 | AW192: 143 | AX192: 18
B193: 130608 | C193: MACHE | D193: 00013974 | E193: Puesto de salud | F193: CRUZ DE MAYO | G193: 720 | H193: 11 | I193: 11 | J193: 11 | K193: 11 | L193: 9 | M193: 13 | N193: 8 | O193: 11 | P193: 11 | Q193: 11 | R193: 13 | S193: 13 | T193: 9 | U193: 10 | V193: 12 | W193: 8 | X193: 13 | Y193: 10 | Z193: 10 | AA193: 10 | AB193: 51 | AC193: 69 | AD193: 51 | AE193: 52 | AF193: 40 | AG193: 44 | AH193: 44 | AI193: 38 | AJ193: 27 | AK193: 27 | AL193: 22 | AM193: 17 | AN193: 11 | AO193: 12 | AP193: 1 | AQ193: 5 | AR193: 5 | AS193: 14 | AT193: 360 | AU193: 29 | AV193: 26 | AW193: 151 | AX193: 19
A194: 1 | B194: 130610 | C194: PARANDAY (7) | G194: 522 | H194: =+H195 -> 6 | I194: =+I195 -> 8 | J194: 4 | K194: 10 | L194: 11 | M194: 8 | N194: 4 | O194: 6 | P194: 5 | Q194: 8 | R194: 2 | S194: 7 | T194: 8 | U194: 10 | V194: 11 | W194: 10 | X194: 9 | Y194: 10 | Z194: 10 | AA194: 9 | AB194: 33 | AC194: 41 | AD194: 43 | AE194: 43 | AF194: 39 | AG194: 33 | AH194: 30 | AI194: 19 | AJ194: 19 | AK194: 19 | AL194: 21 | AM194: 10 | AN194: 7 | AO194: 9 | AP194: 0 | AQ194: 2 | AR194: 4 | AS194: 10 | AT194: 261 | AU194: 20 | AV194: 23 | AW194: 115 | AX194: 6
B195: 130610 | C195: PARANDAY | D195: 00005248 | E195: Puesto de salud | F195: PARANDAY | G195: 522 | H195: 6 | I195: 8 | J195: 4 | K195: 10 | L195: 11 | M195: 8 | N195: 4 | O195: 6 | P195: 5 | Q195: 8 | R195: 2 | S195: 7 | T195: 8 | U195: 10 | V195: 11 | W195: 10 | X195: 9 | Y195: 10 | Z195: 10 | AA195: 9 | AB195: 33 | AC195: 41 | AD195: 43 | AE195: 43 | AF195: 39 | AG195: 33 | AH195: 30 | AI195: 19 | AJ195: 19 | AK195: 19 | AL195: 21 | AM195: 10 | AN195: 7 | AO195: 9 | AP195: 0 | AQ195: 2 | AR195: 4 | AS195: 10 | AT195: 261 | AU195: 20 | AV195: 23 | AW195: 115 | AX195: 6
A196: 4 | B196: 130611 | C196: SALPO (8) | G196: 6509 | H196: =+SUM(H197:H201) -> 71 | I196: =+SUM(I197:I201) -> 64 | J196: 93 | K196: 84 | L196: 104 | M196: 89 | N196: 90 | O196: 109 | P196: 87 | Q196: 108 | R196: 109 | S196: 110 | T196: 100 | U196: 116 | V196: 115 | W196: 113 | X196: 155 | Y196: 145 | Z196: 109 | AA196: 112 | AB196: 457 | AC196: 563 | AD196: 479 | AE196: 456 | AF196: 375 | AG196: 402 | AH196: 354 | AI196: 312 | AJ196: 268 | AK196: 218 | AL196: 178 | AM196: 150 | AN196: 118 | AO196: 96 | AP196: 8 | AQ196: 36 | AR196: 35 | AS196: 104 | AT196: 3251 | AU196: 287 | AV196: 307 | AW196: 1357 | AX196: 255
B197: 130611 | C197: SALPO | D197: 00005326 | E197: Centro de salud | F197: SALPO | G197: 1689 | H197: 18 | I197: 17 | J197: 24 | K197: 21 | L197: 27 | M197: 23 | N197: 22 | O197: 29 | P197: 23 | Q197: 28 | R197: 29 | S197: 28 | T197: 26 | U197: 30 | V197: 30 | W197: 29 | X197: 40 | Y197: 38 | Z197: 28 | AA197: 29 | AB197: 119 | AC197: 147 | AD197: 125 | AE197: 118 | AF197: 98 | AG197: 105 | AH197: 91 | AI197: 81 | AJ197: 69 | AK197: 57 | AL197: 46 | AM197: 39 | AN197: 30 | AO197: 25 | AP197: 2 | AQ197: 9 | AR197: 9 | AS197: 27 | AT197: 846 | AU197: 74 | AV197: 80 | AW197: 353 | AX197: 66
B198: 130611 | C198: SALPO | D198: 00031018 | E198: Puesto de salud | F198: SAUCO | G198: 853 | H198: 9 | I198: 8 | J198: 13 | K198: 11 | L198: 14 | M198: 13 | N198: 12 | O198: 14 | P198: 11 | Q198: 15 | R198: 14 | S198: 14 | T198: 13 | U198: 15 | V198: 15 | W198: 16 | X198: 21 | Y198: 18 | Z198: 15 | AA198: 15 | AB198: 60 | AC198: 73 | AD198: 62 | AE198: 61 | AF198: 48 | AG198: 52 | AH198: 46 | AI198: 40 | AJ198: 35 | AK198: 29 | AL198: 23 | AM198: 20 | AN198: 16 | AO198: 12 | AP198: 2 | AQ198: 5 | AR198: 5 | AS198: 14 | AT198: 423 | AU198: 38 | AV198: 40 | AW198: 177 | AX198: 33
B199: 130611 | C199: SALPO | D199: 00005327 | E199: Puesto de salud | F199: BELLAVISTA | G199: 1923 | H199: 21 | I199: 19 | J199: 27 | K199: 25 | L199: 30 | M199: 26 | N199: 27 | O199: 32 | P199: 26 | Q199: 32 | R199: 32 | S199: 33 | T199: 30 | U199: 34 | V199: 34 | W199: 33 | X199: 46 | Y199: 43 | Z199: 32 | AA199: 33 | AB199: 135 | AC199: 166 | AD199: 142 | AE199: 134 | AF199: 111 | AG199: 119 | AH199: 105 | AI199: 93 | AJ199: 79 | AK199: 64 | AL199: 53 | AM199: 44 | AN199: 35 | AO199: 28 | AP199: 2 | AQ199: 11 | AR199: 10 | AS199: 30 | AT199: 961 | AU199: 85 | AV199: 91 | AW199: 401 | AX199: 75
B200: 130611 | C200: SALPO | D200: 00013043 | E200: Puesto de salud | F200: RAYAMPAMPA | G200: 1059 | H200: 12 | I200: 10 | J200: 15 | K200: 14 | L200: 17 | M200: 14 | N200: 15 | O200: 18 | P200: 14 | Q200: 17 | R200: 18 | S200: 18 | T200: 16 | U200: 19 | V200: 19 | W200: 18 | X200: 25 | Y200: 24 | Z200: 18 | AA200: 18 | AB200: 74 | AC200: 92 | AD200: 78 | AE200: 74 | AF200: 61 | AG200: 65 | AH200: 58 | AI200: 51 | AJ200: 44 | AK200: 35 | AL200: 29 | AM200: 24 | AN200: 19 | AO200: 16 | AP200: 1 | AQ200: 6 | AR200: 6 | AS200: 17 | AT200: 529 | AU200: 47 | AV200: 50 | AW200: 221 | AX200: 42
... 219 more rows
